Department Family,Entity,Date,Expense Type,Expense Area,Supplier,SME,Transaction Number, Amount ,Description,Expenditure Type
HM Land Registry,HM Land Registry,23/10/2018,Exhibition Costs,Program: Local Land Charges,Calder Conferences Limited,SME,1229615," 36,799.00 ",Exhibition Costs,Administration
HM Land Registry,HM Land Registry,05/10/2018,Computer Equipment Maintenance,IS Service Delivery,CGI IT UK Limited,Large,1227557," 61,500.00 ",Computer Equipment Maintenance,Administration
HM Land Registry,HM Land Registry,29/10/2018,Rates Payable,Wales Office,City & County of Swansea,Large,1209129," 23,259.00 ",Rates Payable,Administration
HM Land Registry,HM Land Registry,15/10/2018,Travel & Subsistence General Duty,Birkenhead Office,Corporate Travel Management (North of England) Ltd,SME,1228402, 25.15 ,Travel & Subsistence,Administration
HM Land Registry,HM Land Registry,15/10/2018,Travel & Subsistence General Duty,Business Development,Corporate Travel Management (North of England) Ltd,SME,1228402, 303.40 ,Travel & Subsistence,Administration
HM Land Registry,HM Land Registry,15/10/2018,Travel & Subsistence General Duty,Central Facilities Management Team,Corporate Travel Management (North of England) Ltd,SME,1228402," 1,964.20 ",Travel & Subsistence,Administration
HM Land Registry,HM Land Registry,15/10/2018,Travel & Subsistence General Duty,Central Operations Group,Corporate Travel Management (North of England) Ltd,SME,1228402, 709.12 ,Travel & Subsistence,Administration
HM Land Registry,HM Land Registry,15/10/2018,Travel & Subsistence General Duty,Chief Executives Office,Corporate Travel Management (North of England) Ltd,SME,1228402, 765.02 ,Travel & Subsistence,Administration
HM Land Registry,HM Land Registry,15/10/2018,Travel & Subsistence Overseas Travel,Chief Executives Office,Corporate Travel Management (North of England) Ltd,SME,1228402," 2,549.77 ",Travel & Subsistence,Administration
HM Land Registry,HM Land Registry,15/10/2018,Travel & Subsistence General Duty,Commercial & Customer Strategy & Performance,Corporate Travel Management (North of England) Ltd,SME,1228402, 725.20 ,Travel & Subsistence,Administration
HM Land Registry,HM Land Registry,15/10/2018,Travel & Subsistence General Duty,Commercial Director,Corporate Travel Management (North of England) Ltd,SME,1228402, 384.80 ,Travel & Subsistence,Administration
HM Land Registry,HM Land Registry,15/10/2018,Travel & Subsistence General Duty,Corp Procurement,Corporate Travel Management (North of England) Ltd,SME,1228402, 187.00 ,Travel & Subsistence,Administration
HM Land Registry,HM Land Registry,15/10/2018,Travel & Subsistence General Duty,Corporate Legal Services,Corporate Travel Management (North of England) Ltd,SME,1228402," 1,515.10 ",Travel & Subsistence,Administration
HM Land Registry,HM Land Registry,15/10/2018,Travel & Subsistence General Duty,Coventry Office,Corporate Travel Management (North of England) Ltd,SME,1228402, 0.60 ,Travel & Subsistence,Administration
HM Land Registry,HM Land Registry,15/10/2018,Travel & Subsistence General Duty,Croydon Office,Corporate Travel Management (North of England) Ltd,SME,1228402, 645.80 ,Travel & Subsistence,Administration
HM Land Registry,HM Land Registry,15/10/2018,Travel & Subsistence General Duty,Data Group,Corporate Travel Management (North of England) Ltd,SME,1228402," 1,202.00 ",Travel & Subsistence,Administration
HM Land Registry,HM Land Registry,15/10/2018,Travel & Subsistence General Duty,Dir: (Statutory) Digital Services,Corporate Travel Management (North of England) Ltd,SME,1228402," 5,454.68 ",Travel & Subsistence,Administration
HM Land Registry,HM Land Registry,15/10/2018,Travel & Subsistence General Duty,Dir: Operations,Corporate Travel Management (North of England) Ltd,SME,1228402," 1,344.91 ",Travel & Subsistence,Administration
HM Land Registry,HM Land Registry,15/10/2018,Travel & Subsistence General Duty,Director of Information Systems,Corporate Travel Management (North of England) Ltd,SME,1228402, 757.60 ,Travel & Subsistence,Administration
HM Land Registry,HM Land Registry,15/10/2018,Travel & Subsistence General Duty,Director of Legal Services,Corporate Travel Management (North of England) Ltd,SME,1228402, 509.10 ,Travel & Subsistence,Administration
HM Land Registry,HM Land Registry,15/10/2018,Travel & Subsistence General Duty,Director of Operations,Corporate Travel Management (North of England) Ltd,SME,1228402, 312.43 ,Travel & Subsistence,Administration
HM Land Registry,HM Land Registry,15/10/2018,Travel & Subsistence General Duty,Durham Office,Corporate Travel Management (North of England) Ltd,SME,1228402, 327.20 ,Travel & Subsistence,Administration
HM Land Registry,HM Land Registry,15/10/2018,Travel & Subsistence General Duty,Finance Group,Corporate Travel Management (North of England) Ltd,SME,1228402, 647.15 ,Travel & Subsistence,Administration
HM Land Registry,HM Land Registry,15/10/2018,Travel & Subsistence General Duty,Fylde Office,Corporate Travel Management (North of England) Ltd,SME,1228402," 1,168.40 ",Travel & Subsistence,Administration
HM Land Registry,HM Land Registry,15/10/2018,Travel & Subsistence General Duty,Gloucester Office,Corporate Travel Management (North of England) Ltd,SME,1228402, 279.25 ,Travel & Subsistence,Administration
HM Land Registry,HM Land Registry,15/10/2018,Travel & Subsistence General Duty,HR Group,Corporate Travel Management (North of England) Ltd,SME,1228402," 2,751.18 ",Travel & Subsistence,Administration
HM Land Registry,HM Land Registry,15/10/2018,Travel & Subsistence General Duty,Hull Office,Corporate Travel Management (North of England) Ltd,SME,1228402, 723.00 ,Travel & Subsistence,Administration
HM Land Registry,HM Land Registry,15/10/2018,Travel & Subsistence General Duty,IS Service Delivery,Corporate Travel Management (North of England) Ltd,SME,1228402, 163.60 ,Travel & Subsistence,Administration
HM Land Registry,HM Land Registry,15/10/2018,Travel & Subsistence General Duty,Leicester Office,Corporate Travel Management (North of England) Ltd,SME,1228402, 113.10 ,Travel & Subsistence,Administration
HM Land Registry,HM Land Registry,15/10/2018,Travel & Subsistence General Duty,Local Land Charges,Corporate Travel Management (North of England) Ltd,SME,1228402," 2,499.54 ",Travel & Subsistence,Administration
HM Land Registry,HM Land Registry,15/10/2018,Travel & Subsistence General Duty,Local Lawyer Group,Corporate Travel Management (North of England) Ltd,SME,1228402," 2,375.60 ",Travel & Subsistence,Administration
HM Land Registry,HM Land Registry,15/10/2018,Travel & Subsistence Dual Workplace,Local Lawyer Group,Corporate Travel Management (North of England) Ltd,SME,1228402, 251.90 ,Travel & Subsistence,Administration
HM Land Registry,HM Land Registry,15/10/2018,Travel & Subsistence General Duty,Nottingham Office,Corporate Travel Management (North of England) Ltd,SME,1228402, 74.60 ,Travel & Subsistence,Administration
HM Land Registry,HM Land Registry,15/10/2018,Travel & Subsistence General Duty,Peterborough Office,Corporate Travel Management (North of England) Ltd,SME,1228402, 272.00 ,Travel & Subsistence,Administration
HM Land Registry,HM Land Registry,15/10/2018,Travel & Subsistence General Duty,Product Development & Management,Corporate Travel Management (North of England) Ltd,SME,1228402," 1,008.24 ",Travel & Subsistence,Administration
HM Land Registry,HM Land Registry,15/10/2018,Travel & Subsistence General Duty,Program: Local Land Charges,Corporate Travel Management (North of England) Ltd,SME,1228402," 5,601.99 ",Travel & Subsistence,Administration
HM Land Registry,HM Land Registry,15/10/2018,Travel & Subsistence General Duty,Projects and Programme Centre,Corporate Travel Management (North of England) Ltd,SME,1228402," 1,026.43 ",Travel & Subsistence,Administration
HM Land Registry,HM Land Registry,15/10/2018,Travel & Subsistence General Duty,Property Asset Management Group,Corporate Travel Management (North of England) Ltd,SME,1228402, 111.10 ,Travel & Subsistence,Administration
HM Land Registry,HM Land Registry,15/10/2018,Travel & Subsistence General Duty,Research & Data Mining,Corporate Travel Management (North of England) Ltd,SME,1228402,-296.00 ,Travel & Subsistence,Administration
HM Land Registry,HM Land Registry,15/10/2018,Travel & Subsistence General Duty,Strategy Team,Corporate Travel Management (North of England) Ltd,SME,1228402, 337.70 ,Travel & Subsistence,Administration
HM Land Registry,HM Land Registry,15/10/2018,Travel & Subsistence General Duty,Telford Office,Corporate Travel Management (North of England) Ltd,SME,1228402, 74.70 ,Travel & Subsistence,Administration
HM Land Registry,HM Land Registry,15/10/2018,Travel & Subsistence General Duty,Wales Office,Corporate Travel Management (North of England) Ltd,SME,1228402, 764.10 ,Travel & Subsistence,Administration
HM Land Registry,HM Land Registry,15/10/2018,Travel & Subsistence General Duty,Weymouth Office,Corporate Travel Management (North of England) Ltd,SME,1228402, 307.48 ,Travel & Subsistence,Administration
HM Land Registry,HM Land Registry,15/10/2018,Travel & Subsistence General Duty,Dir: Finance,Corporate Travel Management (North of England) Ltd,SME,1228402," 1,781.00 ",Travel & Subsistence,Administration
HM Land Registry,HM Land Registry,15/10/2018,Travel & Subsistence General Duty,International Business Development,Corporate Travel Management (North of England) Ltd,SME,1228402, 405.15 ,Travel & Subsistence,Administration
HM Land Registry,HM Land Registry,15/10/2018,Travel & Subsistence General Duty,Communications Team,Corporate Travel Management (North of England) Ltd,SME,1228402, 997.41 ,Travel & Subsistence,Administration
HM Land Registry,HM Land Registry,15/10/2018,Travel & Subsistence General Duty,Diversity,Corporate Travel Management (North of England) Ltd,SME,1228402, 266.17 ,Travel & Subsistence,Administration
HM Land Registry,HM Land Registry,15/10/2018,Travel & Subsistence General Duty,Operations Assurance and Risk,Corporate Travel Management (North of England) Ltd,SME,1228402,-128.70 ,Travel & Subsistence,Administration
HM Land Registry,HM Land Registry,15/10/2018,Travel & Subsistence General Duty,Operation Focus,Corporate Travel Management (North of England) Ltd,SME,1228402," 1,443.41 ",Travel & Subsistence,Administration
HM Land Registry,HM Land Registry,15/10/2018,Travel & Subsistence General Duty,Customer Services,Corporate Travel Management (North of England) Ltd,SME,1228402," 2,005.96 ",Travel & Subsistence,Administration
HM Land Registry,HM Land Registry,15/10/2018,Travel & Subsistence Dual Workplace,Customer Services,Corporate Travel Management (North of England) Ltd,SME,1228402, 34.99 ,Travel & Subsistence,Administration
HM Land Registry,HM Land Registry,15/10/2018,Travel & Subsistence General Duty,Service Management - Application Processing,Corporate Travel Management (North of England) Ltd,SME,1228402, 928.10 ,Travel & Subsistence,Administration
HM Land Registry,HM Land Registry,15/10/2018,Travel & Subsistence General Duty,Register Development,Corporate Travel Management (North of England) Ltd,SME,1228402," 1,212.95 ",Travel & Subsistence,Administration
HM Land Registry,HM Land Registry,15/10/2018,Travel & Subsistence General Duty,Local Lawyer Support Group,Corporate Travel Management (North of England) Ltd,SME,1228402, 667.90 ,Travel & Subsistence,Administration
HM Land Registry,HM Land Registry,15/10/2018,Travel & Subsistence General Duty,Head of Commercial Services,Corporate Travel Management (North of England) Ltd,SME,1228402, 169.10 ,Travel & Subsistence,Administration
HM Land Registry,HM Land Registry,15/10/2018,Travel & Subsistence General Duty,LR Sports Council,Corporate Travel Management (North of England) Ltd,SME,1228402, 631.70 ,Travel & Subsistence,Administration
HM Land Registry,HM Land Registry,15/10/2018,Travel & Subsistence General Duty,HR Operations,Corporate Travel Management (North of England) Ltd,SME,1228402, 602.50 ,Travel & Subsistence,Administration
HM Land Registry,HM Land Registry,15/10/2018,Travel & Subsistence General Duty,IT Solutions,Corporate Travel Management (North of England) Ltd,SME,1228402, 832.50 ,Travel & Subsistence,Administration
HM Land Registry,HM Land Registry,15/10/2018,Travel & Subsistence General Duty,Service & Supplier Performance,Corporate Travel Management (North of England) Ltd,SME,1228402, 607.38 ,Travel & Subsistence,Administration
HM Land Registry,HM Land Registry,15/10/2018,Travel & Subsistence General Duty,Office of DDaT,Corporate Travel Management (North of England) Ltd,SME,1228402, 325.40 ,Travel & Subsistence,Administration
HM Land Registry,HM Land Registry,15/10/2018,Travel & Subsistence General Duty,IT Operations    ,Corporate Travel Management (North of England) Ltd,SME,1228402, 638.63 ,Travel & Subsistence,Administration
HM Land Registry,HM Land Registry,15/10/2018,Travel & Subsistence General Duty,Tech Architecture,Corporate Travel Management (North of England) Ltd,SME,1228402, 437.05 ,Travel & Subsistence,Administration
HM Land Registry,HM Land Registry,15/10/2018,Travel & Subsistence General Duty,International Relations,Corporate Travel Management (North of England) Ltd,SME,1228402, 224.76 ,Travel & Subsistence,Administration
HM Land Registry,HM Land Registry,15/10/2018,Travel & Subsistence Overseas Travel,International Relations,Corporate Travel Management (North of England) Ltd,SME,1228402, 250.20 ,Travel & Subsistence,Administration
HM Land Registry,HM Land Registry,15/10/2018,Travel & Subsistence General Duty,Birkenhead Office,Corporate Travel Management (North of England) Ltd,SME,1228987, 696.42 ,Travel & Subsistence,Administration
HM Land Registry,HM Land Registry,15/10/2018,Travel & Subsistence General Duty,Business Development,Corporate Travel Management (North of England) Ltd,SME,1228987," 1,012.15 ",Travel & Subsistence,Administration
HM Land Registry,HM Land Registry,15/10/2018,Travel & Subsistence General Duty,Central Facilities Management Team,Corporate Travel Management (North of England) Ltd,SME,1228987," 1,584.10 ",Travel & Subsistence,Administration
HM Land Registry,HM Land Registry,15/10/2018,Travel & Subsistence General Duty,Central Operations Group,Corporate Travel Management (North of England) Ltd,SME,1228987, 605.58 ,Travel & Subsistence,Administration
HM Land Registry,HM Land Registry,15/10/2018,Travel & Subsistence General Duty,Chief Executives Office,Corporate Travel Management (North of England) Ltd,SME,1228987, 386.05 ,Travel & Subsistence,Administration
HM Land Registry,HM Land Registry,15/10/2018,Travel & Subsistence General Duty,Commercial & Customer Strategy & Performance,Corporate Travel Management (North of England) Ltd,SME,1228987," 1,372.50 ",Travel & Subsistence,Administration
HM Land Registry,HM Land Registry,15/10/2018,Travel & Subsistence General Duty,Commercial Director,Corporate Travel Management (North of England) Ltd,SME,1228987, 275.70 ,Travel & Subsistence,Administration
HM Land Registry,HM Land Registry,15/10/2018,Travel & Subsistence General Duty,Corp Procurement,Corporate Travel Management (North of England) Ltd,SME,1228987, 129.50 ,Travel & Subsistence,Administration
HM Land Registry,HM Land Registry,15/10/2018,Travel & Subsistence General Duty,Corporate Legal Services,Corporate Travel Management (North of England) Ltd,SME,1228987," 2,219.65 ",Travel & Subsistence,Administration
HM Land Registry,HM Land Registry,15/10/2018,Travel & Subsistence Dual Workplace,Corporate Legal Services,Corporate Travel Management (North of England) Ltd,SME,1228987, 121.90 ,Travel & Subsistence,Administration
HM Land Registry,HM Land Registry,15/10/2018,Travel & Subsistence General Duty,Croydon Office,Corporate Travel Management (North of England) Ltd,SME,1228987, 970.30 ,Travel & Subsistence,Administration
HM Land Registry,HM Land Registry,15/10/2018,Travel & Subsistence General Duty,Data Group,Corporate Travel Management (North of England) Ltd,SME,1228987, 504.10 ,Travel & Subsistence,Administration
HM Land Registry,HM Land Registry,15/10/2018,Travel & Subsistence General Duty,Dir: (Statutory) Digital Services,Corporate Travel Management (North of England) Ltd,SME,1228987," 5,358.99 ",Travel & Subsistence,Administration
HM Land Registry,HM Land Registry,15/10/2018,Travel & Subsistence General Duty,Dir: Operations,Corporate Travel Management (North of England) Ltd,SME,1228987, 716.40 ,Travel & Subsistence,Administration
HM Land Registry,HM Land Registry,15/10/2018,Travel & Subsistence General Duty,Director of Information Systems,Corporate Travel Management (North of England) Ltd,SME,1228987, 792.40 ,Travel & Subsistence,Administration
HM Land Registry,HM Land Registry,15/10/2018,Travel & Subsistence General Duty,Director of Legal Services,Corporate Travel Management (North of England) Ltd,SME,1228987, 217.00 ,Travel & Subsistence,Administration
HM Land Registry,HM Land Registry,15/10/2018,Travel & Subsistence General Duty,Director of Operations,Corporate Travel Management (North of England) Ltd,SME,1228987, 154.98 ,Travel & Subsistence,Administration
HM Land Registry,HM Land Registry,15/10/2018,Travel & Subsistence General Duty,Durham Office,Corporate Travel Management (North of England) Ltd,SME,1228987," 1,512.60 ",Travel & Subsistence,Administration
HM Land Registry,HM Land Registry,15/10/2018,Travel & Subsistence General Duty,Finance Group,Corporate Travel Management (North of England) Ltd,SME,1228987, 276.45 ,Travel & Subsistence,Administration
HM Land Registry,HM Land Registry,15/10/2018,Travel & Subsistence General Duty,Fylde Office,Corporate Travel Management (North of England) Ltd,SME,1228987, 500.10 ,Travel & Subsistence,Administration
HM Land Registry,HM Land Registry,15/10/2018,Travel & Subsistence General Duty,Gloucester Office,Corporate Travel Management (North of England) Ltd,SME,1228987, 83.82 ,Travel & Subsistence,Administration
HM Land Registry,HM Land Registry,15/10/2018,Travel & Subsistence General Duty,HR Group,Corporate Travel Management (North of England) Ltd,SME,1228987," 4,248.98 ",Travel & Subsistence,Administration
HM Land Registry,HM Land Registry,15/10/2018,Travel & Subsistence General Duty,Hull Office,Corporate Travel Management (North of England) Ltd,SME,1228987, 328.42 ,Travel & Subsistence,Administration
HM Land Registry,HM Land Registry,15/10/2018,Travel & Subsistence General Duty,Leicester Office,Corporate Travel Management (North of England) Ltd,SME,1228987, 14.00 ,Travel & Subsistence,Administration
HM Land Registry,HM Land Registry,15/10/2018,Travel & Subsistence General Duty,Local Land Charges,Corporate Travel Management (North of England) Ltd,SME,1228987," 1,451.85 ",Travel & Subsistence,Administration
HM Land Registry,HM Land Registry,15/10/2018,Travel & Subsistence General Duty,Local Lawyer Group,Corporate Travel Management (North of England) Ltd,SME,1228987," 1,920.00 ",Travel & Subsistence,Administration
HM Land Registry,HM Land Registry,15/10/2018,Travel & Subsistence Dual Workplace,Local Lawyer Group,Corporate Travel Management (North of England) Ltd,SME,1228987, 280.40 ,Travel & Subsistence,Administration
HM Land Registry,HM Land Registry,15/10/2018,Travel & Subsistence General Duty,Nottingham Office,Corporate Travel Management (North of England) Ltd,SME,1228987, 70.60 ,Travel & Subsistence,Administration
HM Land Registry,HM Land Registry,15/10/2018,Travel & Subsistence General Duty,Peterborough Office,Corporate Travel Management (North of England) Ltd,SME,1228987, 247.62 ,Travel & Subsistence,Administration
HM Land Registry,HM Land Registry,15/10/2018,Travel & Subsistence General Duty,Plymouth Office,Corporate Travel Management (North of England) Ltd,SME,1228987, 252.67 ,Travel & Subsistence,Administration
HM Land Registry,HM Land Registry,15/10/2018,Travel & Subsistence General Duty,Product Development & Management,Corporate Travel Management (North of England) Ltd,SME,1228987, 356.00 ,Travel & Subsistence,Administration
HM Land Registry,HM Land Registry,15/10/2018,Travel & Subsistence General Duty,Program: Local Land Charges,Corporate Travel Management (North of England) Ltd,SME,1228987," 3,200.02 ",Travel & Subsistence,Administration
HM Land Registry,HM Land Registry,15/10/2018,Travel & Subsistence General Duty,Projects and Programme Centre,Corporate Travel Management (North of England) Ltd,SME,1228987, 887.33 ,Travel & Subsistence,Administration
HM Land Registry,HM Land Registry,15/10/2018,Travel & Subsistence General Duty,Property Asset Management Group,Corporate Travel Management (North of England) Ltd,SME,1228987, 374.90 ,Travel & Subsistence,Administration
HM Land Registry,HM Land Registry,15/10/2018,Travel & Subsistence General Duty,Research & Data Mining,Corporate Travel Management (North of England) Ltd,SME,1228987, 113.50 ,Travel & Subsistence,Administration
HM Land Registry,HM Land Registry,15/10/2018,Travel & Subsistence Overseas Travel,Research & Data Mining,Corporate Travel Management (North of England) Ltd,SME,1228987, 1.20 ,Travel & Subsistence,Administration
HM Land Registry,HM Land Registry,15/10/2018,Travel & Subsistence General Duty,Strategy Team,Corporate Travel Management (North of England) Ltd,SME,1228987, 0.60 ,Travel & Subsistence,Administration
HM Land Registry,HM Land Registry,15/10/2018,Travel & Subsistence General Duty,Telford Office,Corporate Travel Management (North of England) Ltd,SME,1228987, 83.82 ,Travel & Subsistence,Administration
HM Land Registry,HM Land Registry,15/10/2018,Travel & Subsistence General Duty,Wales Office,Corporate Travel Management (North of England) Ltd,SME,1228987, 172.35 ,Travel & Subsistence,Administration
HM Land Registry,HM Land Registry,15/10/2018,Travel & Subsistence General Duty,Weymouth Office,Corporate Travel Management (North of England) Ltd,SME,1228987, 245.53 ,Travel & Subsistence,Administration
HM Land Registry,HM Land Registry,15/10/2018,Travel & Subsistence General Duty,Dir: Finance,Corporate Travel Management (North of England) Ltd,SME,1228987," 1,857.30 ",Travel & Subsistence,Administration
HM Land Registry,HM Land Registry,15/10/2018,Travel & Subsistence General Duty,Internal Audit,Corporate Travel Management (North of England) Ltd,SME,1228987, 936.69 ,Travel & Subsistence,Administration
HM Land Registry,HM Land Registry,15/10/2018,Travel & Subsistence General Duty,International Business Development,Corporate Travel Management (North of England) Ltd,SME,1228987, 194.80 ,Travel & Subsistence,Administration
HM Land Registry,HM Land Registry,15/10/2018,Travel & Subsistence Overseas Travel,International Business Development,Corporate Travel Management (North of England) Ltd,SME,1228987, 0.60 ,Travel & Subsistence,Administration
HM Land Registry,HM Land Registry,15/10/2018,Travel & Subsistence General Duty,Communications Team,Corporate Travel Management (North of England) Ltd,SME,1228987, 348.40 ,Travel & Subsistence,Administration
HM Land Registry,HM Land Registry,15/10/2018,Travel & Subsistence General Duty,Diversity,Corporate Travel Management (North of England) Ltd,SME,1228987, 128.00 ,Travel & Subsistence,Administration
HM Land Registry,HM Land Registry,15/10/2018,Travel & Subsistence General Duty,Operations Assurance and Risk,Corporate Travel Management (North of England) Ltd,SME,1228987, 483.51 ,Travel & Subsistence,Administration
HM Land Registry,HM Land Registry,15/10/2018,Travel & Subsistence General Duty,Operation Focus,Corporate Travel Management (North of England) Ltd,SME,1228987, 797.10 ,Travel & Subsistence,Administration
HM Land Registry,HM Land Registry,15/10/2018,Travel & Subsistence General Duty,Customer Services,Corporate Travel Management (North of England) Ltd,SME,1228987," 1,368.66 ",Travel & Subsistence,Administration
HM Land Registry,HM Land Registry,15/10/2018,Travel & Subsistence General Duty,Service Management - Application Processing,Corporate Travel Management (North of England) Ltd,SME,1228987, 916.90 ,Travel & Subsistence,Administration
HM Land Registry,HM Land Registry,15/10/2018,Travel & Subsistence General Duty,Register Development,Corporate Travel Management (North of England) Ltd,SME,1228987,-7.30 ,Travel & Subsistence,Administration
HM Land Registry,HM Land Registry,15/10/2018,Travel & Subsistence General Duty,Local Lawyer Support Group,Corporate Travel Management (North of England) Ltd,SME,1228987, 746.30 ,Travel & Subsistence,Administration
HM Land Registry,HM Land Registry,15/10/2018,Travel & Subsistence General Duty,Head of Commercial Services,Corporate Travel Management (North of England) Ltd,SME,1228987, 687.95 ,Travel & Subsistence,Administration
HM Land Registry,HM Land Registry,15/10/2018,Travel & Subsistence General Duty,HR Operations,Corporate Travel Management (North of England) Ltd,SME,1228987, 48.20 ,Travel & Subsistence,Administration
HM Land Registry,HM Land Registry,15/10/2018,Travel & Subsistence General Duty,Guarantee & Litigation,Corporate Travel Management (North of England) Ltd,SME,1228987, 98.50 ,Travel & Subsistence,Administration
HM Land Registry,HM Land Registry,15/10/2018,Travel & Subsistence General Duty,IT Solutions,Corporate Travel Management (North of England) Ltd,SME,1228987," 2,327.35 ",Travel & Subsistence,Administration
HM Land Registry,HM Land Registry,15/10/2018,Travel & Subsistence General Duty,Service & Supplier Performance,Corporate Travel Management (North of England) Ltd,SME,1228987, 614.60 ,Travel & Subsistence,Administration
HM Land Registry,HM Land Registry,15/10/2018,Travel & Subsistence General Duty,Office of DDaT,Corporate Travel Management (North of England) Ltd,SME,1228987, 580.25 ,Travel & Subsistence,Administration
HM Land Registry,HM Land Registry,15/10/2018,Travel & Subsistence General Duty,IT Operations    ,Corporate Travel Management (North of England) Ltd,SME,1228987, 971.80 ,Travel & Subsistence,Administration
HM Land Registry,HM Land Registry,15/10/2018,Travel & Subsistence General Duty,Registration Legal Services Group,Corporate Travel Management (North of England) Ltd,SME,1228987, 154.50 ,Travel & Subsistence,Administration
HM Land Registry,HM Land Registry,15/10/2018,Travel & Subsistence General Duty,International Relations,Corporate Travel Management (North of England) Ltd,SME,1228987, 18.10 ,Travel & Subsistence,Administration
HM Land Registry,HM Land Registry,15/10/2018,Travel & Subsistence Overseas Travel,International Relations,Corporate Travel Management (North of England) Ltd,SME,1228987, 0.60 ,Travel & Subsistence,Administration
HM Land Registry,HM Land Registry,15/10/2018,Travel & Subsistence General Duty,HR Strategy & Policy,Corporate Travel Management (North of England) Ltd,SME,1228987, 176.20 ,Travel & Subsistence,Administration
HM Land Registry,HM Land Registry,15/10/2018,Travel & Subsistence General Duty,Birkenhead Office,Corporate Travel Management (North of England) Ltd,SME,1228999, 54.20 ,Travel & Subsistence,Administration
HM Land Registry,HM Land Registry,15/10/2018,Travel & Subsistence General Duty,Business Development,Corporate Travel Management (North of England) Ltd,SME,1228999," 1,720.30 ",Travel & Subsistence,Administration
HM Land Registry,HM Land Registry,15/10/2018,Travel & Subsistence General Duty,Central Facilities Management Team,Corporate Travel Management (North of England) Ltd,SME,1228999, 893.61 ,Travel & Subsistence,Administration
HM Land Registry,HM Land Registry,15/10/2018,Travel & Subsistence General Duty,Central Operations Group,Corporate Travel Management (North of England) Ltd,SME,1228999, 632.50 ,Travel & Subsistence,Administration
HM Land Registry,HM Land Registry,15/10/2018,Travel & Subsistence General Duty,Chief Executives Office,Corporate Travel Management (North of England) Ltd,SME,1228999, 769.60 ,Travel & Subsistence,Administration
HM Land Registry,HM Land Registry,15/10/2018,Travel & Subsistence General Duty,Commercial & Customer Strategy & Performance,Corporate Travel Management (North of England) Ltd,SME,1228999, 278.05 ,Travel & Subsistence,Administration
HM Land Registry,HM Land Registry,15/10/2018,Travel & Subsistence General Duty,Commercial Director,Corporate Travel Management (North of England) Ltd,SME,1228999, 372.00 ,Travel & Subsistence,Administration
HM Land Registry,HM Land Registry,15/10/2018,Travel & Subsistence General Duty,Corp Procurement,Corporate Travel Management (North of England) Ltd,SME,1228999, 308.00 ,Travel & Subsistence,Administration
HM Land Registry,HM Land Registry,15/10/2018,Travel & Subsistence General Duty,Corporate Legal Services,Corporate Travel Management (North of England) Ltd,SME,1228999," 1,519.00 ",Travel & Subsistence,Administration
HM Land Registry,HM Land Registry,15/10/2018,Travel & Subsistence Dual Workplace,Corporate Legal Services,Corporate Travel Management (North of England) Ltd,SME,1228999, 55.80 ,Travel & Subsistence,Administration
HM Land Registry,HM Land Registry,15/10/2018,Travel & Subsistence General Duty,Coventry Office,Corporate Travel Management (North of England) Ltd,SME,1228999, 148.40 ,Travel & Subsistence,Administration
HM Land Registry,HM Land Registry,15/10/2018,Travel & Subsistence General Duty,Croydon Office,Corporate Travel Management (North of England) Ltd,SME,1228999, 704.10 ,Travel & Subsistence,Administration
HM Land Registry,HM Land Registry,15/10/2018,Travel & Subsistence General Duty,Data Group,Corporate Travel Management (North of England) Ltd,SME,1228999," 1,761.07 ",Travel & Subsistence,Administration
HM Land Registry,HM Land Registry,15/10/2018,Travel & Subsistence General Duty,Dir: (Statutory) Digital Services,Corporate Travel Management (North of England) Ltd,SME,1228999," 5,823.31 ",Travel & Subsistence,Administration
HM Land Registry,HM Land Registry,15/10/2018,Travel & Subsistence General Duty,Dir: Operations,Corporate Travel Management (North of England) Ltd,SME,1228999," 1,417.97 ",Travel & Subsistence,Administration
HM Land Registry,HM Land Registry,15/10/2018,Travel & Subsistence General Duty,Director of Information Systems,Corporate Travel Management (North of England) Ltd,SME,1228999, 216.00 ,Travel & Subsistence,Administration
HM Land Registry,HM Land Registry,15/10/2018,Travel & Subsistence General Duty,Director of Legal Services,Corporate Travel Management (North of England) Ltd,SME,1228999, 367.00 ,Travel & Subsistence,Administration
HM Land Registry,HM Land Registry,15/10/2018,Travel & Subsistence General Duty,Director of Operations,Corporate Travel Management (North of England) Ltd,SME,1228999, 393.10 ,Travel & Subsistence,Administration
HM Land Registry,HM Land Registry,15/10/2018,Travel & Subsistence General Duty,Durham Office,Corporate Travel Management (North of England) Ltd,SME,1228999," 1,218.60 ",Travel & Subsistence,Administration
HM Land Registry,HM Land Registry,15/10/2018,Travel & Subsistence General Duty,Finance Group,Corporate Travel Management (North of England) Ltd,SME,1228999, 492.80 ,Travel & Subsistence,Administration
HM Land Registry,HM Land Registry,15/10/2018,Travel & Subsistence General Duty,Fylde Office,Corporate Travel Management (North of England) Ltd,SME,1228999, 456.15 ,Travel & Subsistence,Administration
HM Land Registry,HM Land Registry,15/10/2018,Travel & Subsistence General Duty,Gloucester Office,Corporate Travel Management (North of England) Ltd,SME,1228999, 439.60 ,Travel & Subsistence,Administration
HM Land Registry,HM Land Registry,15/10/2018,Travel & Subsistence General Duty,HR Group,Corporate Travel Management (North of England) Ltd,SME,1228999," 4,184.28 ",Travel & Subsistence,Administration
HM Land Registry,HM Land Registry,15/10/2018,Travel & Subsistence General Duty,Hull Office,Corporate Travel Management (North of England) Ltd,SME,1228999, 228.10 ,Travel & Subsistence,Administration
HM Land Registry,HM Land Registry,15/10/2018,Travel & Subsistence General Duty,Local Land Charges,Corporate Travel Management (North of England) Ltd,SME,1228999, 750.69 ,Travel & Subsistence,Administration
HM Land Registry,HM Land Registry,15/10/2018,Travel & Subsistence General Duty,Local Lawyer Group,Corporate Travel Management (North of England) Ltd,SME,1228999," 3,530.70 ",Travel & Subsistence,Administration
HM Land Registry,HM Land Registry,15/10/2018,Travel & Subsistence Dual Workplace,Local Lawyer Group,Corporate Travel Management (North of England) Ltd,SME,1228999, 102.30 ,Travel & Subsistence,Administration
HM Land Registry,HM Land Registry,15/10/2018,Travel & Subsistence General Duty,Nottingham Office,Corporate Travel Management (North of England) Ltd,SME,1228999, 60.50 ,Travel & Subsistence,Administration
HM Land Registry,HM Land Registry,15/10/2018,Travel & Subsistence General Duty,Peterborough Office,Corporate Travel Management (North of England) Ltd,SME,1228999, 122.90 ,Travel & Subsistence,Administration
HM Land Registry,HM Land Registry,15/10/2018,Travel & Subsistence General Duty,Product Development & Management,Corporate Travel Management (North of England) Ltd,SME,1228999," 1,529.08 ",Travel & Subsistence,Administration
HM Land Registry,HM Land Registry,15/10/2018,Travel & Subsistence General Duty,Program: Local Land Charges,Corporate Travel Management (North of England) Ltd,SME,1228999, 979.25 ,Travel & Subsistence,Administration
HM Land Registry,HM Land Registry,15/10/2018,Travel & Subsistence General Duty,Projects and Programme Centre,Corporate Travel Management (North of England) Ltd,SME,1228999, 728.83 ,Travel & Subsistence,Administration
HM Land Registry,HM Land Registry,15/10/2018,Travel & Subsistence General Duty,Property Asset Management Group,Corporate Travel Management (North of England) Ltd,SME,1228999, 108.00 ,Travel & Subsistence,Administration
HM Land Registry,HM Land Registry,15/10/2018,Travel & Subsistence General Duty,Research & Data Mining,Corporate Travel Management (North of England) Ltd,SME,1228999, 286.90 ,Travel & Subsistence,Administration
HM Land Registry,HM Land Registry,15/10/2018,Travel & Subsistence General Duty,Strategy Team,Corporate Travel Management (North of England) Ltd,SME,1228999, 73.70 ,Travel & Subsistence,Administration
HM Land Registry,HM Land Registry,15/10/2018,Travel & Subsistence General Duty,Wales Office,Corporate Travel Management (North of England) Ltd,SME,1228999, 184.10 ,Travel & Subsistence,Administration
HM Land Registry,HM Land Registry,15/10/2018,Travel & Subsistence General Duty,Weymouth Office,Corporate Travel Management (North of England) Ltd,SME,1228999, 70.60 ,Travel & Subsistence,Administration
HM Land Registry,HM Land Registry,15/10/2018,Travel & Subsistence General Duty,Dir: Finance,Corporate Travel Management (North of England) Ltd,SME,1228999," 1,193.50 ",Travel & Subsistence,Administration
HM Land Registry,HM Land Registry,15/10/2018,Travel & Subsistence General Duty,International Business Development,Corporate Travel Management (North of England) Ltd,SME,1228999, 345.60 ,Travel & Subsistence,Administration
HM Land Registry,HM Land Registry,15/10/2018,Travel & Subsistence General Duty,Communications Team,Corporate Travel Management (North of England) Ltd,SME,1228999, 997.42 ,Travel & Subsistence,Administration
HM Land Registry,HM Land Registry,15/10/2018,Travel & Subsistence General Duty,Operations Assurance and Risk,Corporate Travel Management (North of England) Ltd,SME,1228999, 145.70 ,Travel & Subsistence,Administration
HM Land Registry,HM Land Registry,15/10/2018,Travel & Subsistence General Duty,Operation Focus,Corporate Travel Management (North of England) Ltd,SME,1228999, 785.39 ,Travel & Subsistence,Administration
HM Land Registry,HM Land Registry,15/10/2018,Travel & Subsistence General Duty,Customer Services,Corporate Travel Management (North of England) Ltd,SME,1228999," 1,541.85 ",Travel & Subsistence,Administration
HM Land Registry,HM Land Registry,15/10/2018,Travel & Subsistence General Duty,Service Management - Application Processing,Corporate Travel Management (North of England) Ltd,SME,1228999," 1,281.53 ",Travel & Subsistence,Administration
HM Land Registry,HM Land Registry,15/10/2018,Travel & Subsistence General Duty,Register Development,Corporate Travel Management (North of England) Ltd,SME,1228999, 350.00 ,Travel & Subsistence,Administration
HM Land Registry,HM Land Registry,15/10/2018,Travel & Subsistence General Duty,Local Lawyer Support Group,Corporate Travel Management (North of England) Ltd,SME,1228999, 139.40 ,Travel & Subsistence,Administration
HM Land Registry,HM Land Registry,15/10/2018,Travel & Subsistence General Duty,Head of Commercial Services,Corporate Travel Management (North of England) Ltd,SME,1228999, 563.10 ,Travel & Subsistence,Administration
HM Land Registry,HM Land Registry,15/10/2018,Travel & Subsistence General Duty,LR Sports Council,Corporate Travel Management (North of England) Ltd,SME,1228999, 865.80 ,Travel & Subsistence,Administration
HM Land Registry,HM Land Registry,15/10/2018,Travel & Subsistence General Duty,HR Operations,Corporate Travel Management (North of England) Ltd,SME,1228999, 149.00 ,Travel & Subsistence,Administration
HM Land Registry,HM Land Registry,15/10/2018,Travel & Subsistence General Duty,Independent Complaints Reviewer,Corporate Travel Management (North of England) Ltd,SME,1228999, 380.20 ,Travel & Subsistence,Administration
HM Land Registry,HM Land Registry,15/10/2018,Travel & Subsistence General Duty,IT Solutions,Corporate Travel Management (North of England) Ltd,SME,1228999," 1,875.87 ",Travel & Subsistence,Administration
HM Land Registry,HM Land Registry,15/10/2018,Travel & Subsistence General Duty,Service & Supplier Performance,Corporate Travel Management (North of England) Ltd,SME,1228999," 1,158.42 ",Travel & Subsistence,Administration
HM Land Registry,HM Land Registry,15/10/2018,Travel & Subsistence General Duty,Office of DDaT,Corporate Travel Management (North of England) Ltd,SME,1228999, 583.40 ,Travel & Subsistence,Administration
HM Land Registry,HM Land Registry,15/10/2018,Travel & Subsistence General Duty,IT Operations    ,Corporate Travel Management (North of England) Ltd,SME,1228999, 183.00 ,Travel & Subsistence,Administration
HM Land Registry,HM Land Registry,15/10/2018,Travel & Subsistence General Duty,Tech Architecture,Corporate Travel Management (North of England) Ltd,SME,1228999, 400.00 ,Travel & Subsistence,Administration
HM Land Registry,HM Land Registry,24/10/2018,Travel & Subsistence General Duty,Birkenhead Office,Corporate Travel Management (North of England) Ltd,SME,1229555, 744.50 ,Travel & Subsistence,Administration
HM Land Registry,HM Land Registry,24/10/2018,Travel & Subsistence General Duty,Business Development,Corporate Travel Management (North of England) Ltd,SME,1229555, 964.34 ,Travel & Subsistence,Administration
HM Land Registry,HM Land Registry,24/10/2018,Travel & Subsistence General Duty,Central Facilities Management Team,Corporate Travel Management (North of England) Ltd,SME,1229555, 352.44 ,Travel & Subsistence,Administration
HM Land Registry,HM Land Registry,24/10/2018,Travel & Subsistence General Duty,Central Operations Group,Corporate Travel Management (North of England) Ltd,SME,1229555," 1,214.30 ",Travel & Subsistence,Administration
HM Land Registry,HM Land Registry,24/10/2018,Travel & Subsistence General Duty,Chief Executives Office,Corporate Travel Management (North of England) Ltd,SME,1229555, 790.72 ,Travel & Subsistence,Administration
HM Land Registry,HM Land Registry,24/10/2018,Travel & Subsistence General Duty,Commercial & Customer Strategy & Performance,Corporate Travel Management (North of England) Ltd,SME,1229555," 1,003.00 ",Travel & Subsistence,Administration
HM Land Registry,HM Land Registry,24/10/2018,Travel & Subsistence General Duty,Commercial Director,Corporate Travel Management (North of England) Ltd,SME,1229555, 327.33 ,Travel & Subsistence,Administration
HM Land Registry,HM Land Registry,24/10/2018,Travel & Subsistence General Duty,Corp Procurement,Corporate Travel Management (North of England) Ltd,SME,1229555, 253.20 ,Travel & Subsistence,Administration
HM Land Registry,HM Land Registry,24/10/2018,Travel & Subsistence General Duty,Corporate Legal Services,Corporate Travel Management (North of England) Ltd,SME,1229555, 787.25 ,Travel & Subsistence,Administration
HM Land Registry,HM Land Registry,24/10/2018,Travel & Subsistence Dual Workplace,Corporate Legal Services,Corporate Travel Management (North of England) Ltd,SME,1229555, 23.80 ,Travel & Subsistence,Administration
HM Land Registry,HM Land Registry,24/10/2018,Travel & Subsistence General Duty,Coventry Office,Corporate Travel Management (North of England) Ltd,SME,1229555, 187.70 ,Travel & Subsistence,Administration
HM Land Registry,HM Land Registry,24/10/2018,Travel & Subsistence General Duty,Croydon Office,Corporate Travel Management (North of England) Ltd,SME,1229555," 1,056.70 ",Travel & Subsistence,Administration
HM Land Registry,HM Land Registry,24/10/2018,Travel & Subsistence General Duty,Data Group,Corporate Travel Management (North of England) Ltd,SME,1229555," 1,559.58 ",Travel & Subsistence,Administration
HM Land Registry,HM Land Registry,24/10/2018,Travel & Subsistence General Duty,Dir: (Statutory) Digital Services,Corporate Travel Management (North of England) Ltd,SME,1229555," 4,875.70 ",Travel & Subsistence,Administration
HM Land Registry,HM Land Registry,24/10/2018,Travel & Subsistence General Duty,Dir: Operations,Corporate Travel Management (North of England) Ltd,SME,1229555, 586.61 ,Travel & Subsistence,Administration
HM Land Registry,HM Land Registry,24/10/2018,Travel & Subsistence General Duty,Director of Information Systems,Corporate Travel Management (North of England) Ltd,SME,1229555, 312.29 ,Travel & Subsistence,Administration
HM Land Registry,HM Land Registry,24/10/2018,Travel & Subsistence General Duty,Director of Legal Services,Corporate Travel Management (North of England) Ltd,SME,1229555, 227.60 ,Travel & Subsistence,Administration
HM Land Registry,HM Land Registry,24/10/2018,Travel & Subsistence General Duty,Director of Operations,Corporate Travel Management (North of England) Ltd,SME,1229555, 140.60 ,Travel & Subsistence,Administration
HM Land Registry,HM Land Registry,24/10/2018,Travel & Subsistence General Duty,Durham Office,Corporate Travel Management (North of England) Ltd,SME,1229555," 2,350.39 ",Travel & Subsistence,Administration
HM Land Registry,HM Land Registry,24/10/2018,Travel & Subsistence General Duty,Finance Group,Corporate Travel Management (North of England) Ltd,SME,1229555, 450.73 ,Travel & Subsistence,Administration
HM Land Registry,HM Land Registry,24/10/2018,Travel & Subsistence General Duty,Fylde Office,Corporate Travel Management (North of England) Ltd,SME,1229555, 406.75 ,Travel & Subsistence,Administration
HM Land Registry,HM Land Registry,24/10/2018,Travel & Subsistence General Duty,Gloucester Office,Corporate Travel Management (North of England) Ltd,SME,1229555, 84.60 ,Travel & Subsistence,Administration
HM Land Registry,HM Land Registry,24/10/2018,Travel & Subsistence General Duty,HR Group,Corporate Travel Management (North of England) Ltd,SME,1229555," 3,762.64 ",Travel & Subsistence,Administration
HM Land Registry,HM Land Registry,24/10/2018,Travel & Subsistence General Duty,Hull Office,Corporate Travel Management (North of England) Ltd,SME,1229555, 276.60 ,Travel & Subsistence,Administration
HM Land Registry,HM Land Registry,24/10/2018,Travel & Subsistence General Duty,Leicester Office,Corporate Travel Management (North of England) Ltd,SME,1229555, 592.56 ,Travel & Subsistence,Administration
HM Land Registry,HM Land Registry,24/10/2018,Travel & Subsistence General Duty,Local Land Charges,Corporate Travel Management (North of England) Ltd,SME,1229555," 1,130.56 ",Travel & Subsistence,Administration
HM Land Registry,HM Land Registry,24/10/2018,Travel & Subsistence General Duty,Local Lawyer Group,Corporate Travel Management (North of England) Ltd,SME,1229555," 1,208.00 ",Travel & Subsistence,Administration
HM Land Registry,HM Land Registry,24/10/2018,Travel & Subsistence Dual Workplace,Local Lawyer Group,Corporate Travel Management (North of England) Ltd,SME,1229555, 9.10 ,Travel & Subsistence,Administration
HM Land Registry,HM Land Registry,24/10/2018,Travel & Subsistence General Duty,Nottingham Office,Corporate Travel Management (North of England) Ltd,SME,1229555, 169.80 ,Travel & Subsistence,Administration
HM Land Registry,HM Land Registry,24/10/2018,Travel & Subsistence General Duty,Peterborough Office,Corporate Travel Management (North of England) Ltd,SME,1229555, 436.50 ,Travel & Subsistence,Administration
HM Land Registry,HM Land Registry,24/10/2018,Travel & Subsistence General Duty,Plymouth Office,Corporate Travel Management (North of England) Ltd,SME,1229555, 84.60 ,Travel & Subsistence,Administration
HM Land Registry,HM Land Registry,24/10/2018,Travel & Subsistence General Duty,Product Development & Management,Corporate Travel Management (North of England) Ltd,SME,1229555," 2,972.95 ",Travel & Subsistence,Administration
HM Land Registry,HM Land Registry,24/10/2018,Travel & Subsistence General Duty,Program: Local Land Charges,Corporate Travel Management (North of England) Ltd,SME,1229555," 2,279.46 ",Travel & Subsistence,Administration
HM Land Registry,HM Land Registry,24/10/2018,Travel & Subsistence General Duty,Projects and Programme Centre,Corporate Travel Management (North of England) Ltd,SME,1229555," 1,641.29 ",Travel & Subsistence,Administration
HM Land Registry,HM Land Registry,24/10/2018,Travel & Subsistence General Duty,Property Asset Management Group,Corporate Travel Management (North of England) Ltd,SME,1229555, 57.40 ,Travel & Subsistence,Administration
HM Land Registry,HM Land Registry,24/10/2018,Travel & Subsistence General Duty,Research & Data Mining,Corporate Travel Management (North of England) Ltd,SME,1229555, 557.00 ,Travel & Subsistence,Administration
HM Land Registry,HM Land Registry,24/10/2018,Travel & Subsistence General Duty,Strategy Team,Corporate Travel Management (North of England) Ltd,SME,1229555, 396.80 ,Travel & Subsistence,Administration
HM Land Registry,HM Land Registry,24/10/2018,Travel & Subsistence General Duty,Telford Office,Corporate Travel Management (North of England) Ltd,SME,1229555, 373.10 ,Travel & Subsistence,Administration
HM Land Registry,HM Land Registry,24/10/2018,Travel & Subsistence General Duty,Wales Office,Corporate Travel Management (North of England) Ltd,SME,1229555, 334.00 ,Travel & Subsistence,Administration
HM Land Registry,HM Land Registry,24/10/2018,Travel & Subsistence General Duty,Weymouth Office,Corporate Travel Management (North of England) Ltd,SME,1229555, 423.00 ,Travel & Subsistence,Administration
HM Land Registry,HM Land Registry,24/10/2018,Travel & Subsistence General Duty,Dir: Finance,Corporate Travel Management (North of England) Ltd,SME,1229555," 1,289.90 ",Travel & Subsistence,Administration
HM Land Registry,HM Land Registry,24/10/2018,Travel & Subsistence General Duty,Internal Audit,Corporate Travel Management (North of England) Ltd,SME,1229555, 310.50 ,Travel & Subsistence,Administration
HM Land Registry,HM Land Registry,24/10/2018,Travel & Subsistence General Duty,Communications Team,Corporate Travel Management (North of England) Ltd,SME,1229555, 226.00 ,Travel & Subsistence,Administration
HM Land Registry,HM Land Registry,24/10/2018,Travel & Subsistence General Duty,Operations Assurance and Risk,Corporate Travel Management (North of England) Ltd,SME,1229555, 411.95 ,Travel & Subsistence,Administration
HM Land Registry,HM Land Registry,24/10/2018,Travel & Subsistence General Duty,Operation Focus,Corporate Travel Management (North of England) Ltd,SME,1229555," 2,844.80 ",Travel & Subsistence,Administration
HM Land Registry,HM Land Registry,24/10/2018,Travel & Subsistence General Duty,Customer Services,Corporate Travel Management (North of England) Ltd,SME,1229555, 607.00 ,Travel & Subsistence,Administration
HM Land Registry,HM Land Registry,24/10/2018,Travel & Subsistence General Duty,Service Management - Application Processing,Corporate Travel Management (North of England) Ltd,SME,1229555," 1,918.20 ",Travel & Subsistence,Administration
HM Land Registry,HM Land Registry,24/10/2018,Travel & Subsistence General Duty,Register Development,Corporate Travel Management (North of England) Ltd,SME,1229555, 26.40 ,Travel & Subsistence,Administration
HM Land Registry,HM Land Registry,24/10/2018,Travel & Subsistence General Duty,Local Lawyer Support Group,Corporate Travel Management (North of England) Ltd,SME,1229555," 1,500.32 ",Travel & Subsistence,Administration
HM Land Registry,HM Land Registry,24/10/2018,Travel & Subsistence General Duty,Head of Commercial Services,Corporate Travel Management (North of England) Ltd,SME,1229555, 493.23 ,Travel & Subsistence,Administration
HM Land Registry,HM Land Registry,24/10/2018,Travel & Subsistence General Duty,LR Sports Council,Corporate Travel Management (North of England) Ltd,SME,1229555," 1,526.90 ",Travel & Subsistence,Administration
HM Land Registry,HM Land Registry,24/10/2018,Travel & Subsistence General Duty,IT Solutions,Corporate Travel Management (North of England) Ltd,SME,1229555, 819.80 ,Travel & Subsistence,Administration
HM Land Registry,HM Land Registry,24/10/2018,Travel & Subsistence General Duty,Service & Supplier Performance,Corporate Travel Management (North of England) Ltd,SME,1229555, 306.16 ,Travel & Subsistence,Administration
HM Land Registry,HM Land Registry,24/10/2018,Travel & Subsistence General Duty,Office of DDaT,Corporate Travel Management (North of England) Ltd,SME,1229555, 98.50 ,Travel & Subsistence,Administration
HM Land Registry,HM Land Registry,24/10/2018,Travel & Subsistence General Duty,IT Operations    ,Corporate Travel Management (North of England) Ltd,SME,1229555, 106.70 ,Travel & Subsistence,Administration
HM Land Registry,HM Land Registry,30/10/2018,Travel & Subsistence General Duty,Birkenhead Office,Corporate Travel Management (North of England) Ltd,SME,1230460, 526.85 ,Travel & Subsistence,Administration
HM Land Registry,HM Land Registry,30/10/2018,Travel & Subsistence General Duty,Business Development,Corporate Travel Management (North of England) Ltd,SME,1230460, 973.98 ,Travel & Subsistence,Administration
HM Land Registry,HM Land Registry,30/10/2018,Travel & Subsistence General Duty,Central Facilities Management Team,Corporate Travel Management (North of England) Ltd,SME,1230460, 438.07 ,Travel & Subsistence,Administration
HM Land Registry,HM Land Registry,30/10/2018,Travel & Subsistence General Duty,Central Operations Group,Corporate Travel Management (North of England) Ltd,SME,1230460," 1,642.12 ",Travel & Subsistence,Administration
HM Land Registry,HM Land Registry,30/10/2018,Travel & Subsistence General Duty,Chief Executives Office,Corporate Travel Management (North of England) Ltd,SME,1230460, 377.60 ,Travel & Subsistence,Administration
HM Land Registry,HM Land Registry,30/10/2018,Travel & Subsistence General Duty,Commercial & Customer Strategy & Performance,Corporate Travel Management (North of England) Ltd,SME,1230460, 559.06 ,Travel & Subsistence,Administration
HM Land Registry,HM Land Registry,30/10/2018,Travel & Subsistence General Duty,Commercial Director,Corporate Travel Management (North of England) Ltd,SME,1230460, 0.60 ,Travel & Subsistence,Administration
HM Land Registry,HM Land Registry,30/10/2018,Travel & Subsistence General Duty,Corp Procurement,Corporate Travel Management (North of England) Ltd,SME,1230460, 160.10 ,Travel & Subsistence,Administration
HM Land Registry,HM Land Registry,30/10/2018,Travel & Subsistence General Duty,Corporate Legal Services,Corporate Travel Management (North of England) Ltd,SME,1230460, 600.95 ,Travel & Subsistence,Administration
HM Land Registry,HM Land Registry,30/10/2018,Travel & Subsistence Dual Workplace,Corporate Legal Services,Corporate Travel Management (North of England) Ltd,SME,1230460, 55.80 ,Travel & Subsistence,Administration
HM Land Registry,HM Land Registry,30/10/2018,Travel & Subsistence General Duty,Coventry Office,Corporate Travel Management (North of England) Ltd,SME,1230460, 102.80 ,Travel & Subsistence,Administration
HM Land Registry,HM Land Registry,30/10/2018,Travel & Subsistence General Duty,Croydon Office,Corporate Travel Management (North of England) Ltd,SME,1230460, 12.70 ,Travel & Subsistence,Administration
HM Land Registry,HM Land Registry,30/10/2018,Travel & Subsistence General Duty,Data Group,Corporate Travel Management (North of England) Ltd,SME,1230460," 1,303.13 ",Travel & Subsistence,Administration
HM Land Registry,HM Land Registry,30/10/2018,Travel & Subsistence General Duty,Dir: (Statutory) Digital Services,Corporate Travel Management (North of England) Ltd,SME,1230460," 4,550.65 ",Travel & Subsistence,Administration
HM Land Registry,HM Land Registry,30/10/2018,Travel & Subsistence General Duty,Dir: Operations,Corporate Travel Management (North of England) Ltd,SME,1230460, 647.53 ,Travel & Subsistence,Administration
HM Land Registry,HM Land Registry,30/10/2018,Travel & Subsistence General Duty,Director of Information Systems,Corporate Travel Management (North of England) Ltd,SME,1230460, 185.93 ,Travel & Subsistence,Administration
HM Land Registry,HM Land Registry,30/10/2018,Travel & Subsistence General Duty,Director of Operations,Corporate Travel Management (North of England) Ltd,SME,1230460, 365.80 ,Travel & Subsistence,Administration
HM Land Registry,HM Land Registry,30/10/2018,Travel & Subsistence General Duty,Durham Office,Corporate Travel Management (North of England) Ltd,SME,1230460, 704.13 ,Travel & Subsistence,Administration
HM Land Registry,HM Land Registry,30/10/2018,Travel & Subsistence General Duty,Finance Group,Corporate Travel Management (North of England) Ltd,SME,1230460, 279.92 ,Travel & Subsistence,Administration
HM Land Registry,HM Land Registry,30/10/2018,Travel & Subsistence General Duty,Fylde Office,Corporate Travel Management (North of England) Ltd,SME,1230460, 540.59 ,Travel & Subsistence,Administration
HM Land Registry,HM Land Registry,30/10/2018,Travel & Subsistence General Duty,HR Group,Corporate Travel Management (North of England) Ltd,SME,1230460," 1,486.52 ",Travel & Subsistence,Administration
HM Land Registry,HM Land Registry,30/10/2018,Travel & Subsistence General Duty,Leicester Office,Corporate Travel Management (North of England) Ltd,SME,1230460, 353.60 ,Travel & Subsistence,Administration
HM Land Registry,HM Land Registry,30/10/2018,Travel & Subsistence General Duty,Local Land Charges,Corporate Travel Management (North of England) Ltd,SME,1230460," 1,826.70 ",Travel & Subsistence,Administration
HM Land Registry,HM Land Registry,30/10/2018,Travel & Subsistence General Duty,Local Lawyer Group,Corporate Travel Management (North of England) Ltd,SME,1230460," 1,225.35 ",Travel & Subsistence,Administration
HM Land Registry,HM Land Registry,30/10/2018,Travel & Subsistence General Duty,Nottingham Office,Corporate Travel Management (North of England) Ltd,SME,1230460, 133.80 ,Travel & Subsistence,Administration
HM Land Registry,HM Land Registry,30/10/2018,Travel & Subsistence General Duty,Peterborough Office,Corporate Travel Management (North of England) Ltd,SME,1230460, 250.55 ,Travel & Subsistence,Administration
HM Land Registry,HM Land Registry,30/10/2018,Travel & Subsistence General Duty,Product Development & Management,Corporate Travel Management (North of England) Ltd,SME,1230460," 1,402.25 ",Travel & Subsistence,Administration
HM Land Registry,HM Land Registry,30/10/2018,Travel & Subsistence General Duty,Program: Local Land Charges,Corporate Travel Management (North of England) Ltd,SME,1230460," 2,582.18 ",Travel & Subsistence,Administration
HM Land Registry,HM Land Registry,30/10/2018,Travel & Subsistence General Duty,Projects and Programme Centre,Corporate Travel Management (North of England) Ltd,SME,1230460, 613.80 ,Travel & Subsistence,Administration
HM Land Registry,HM Land Registry,30/10/2018,Travel & Subsistence General Duty,Property Asset Management Group,Corporate Travel Management (North of England) Ltd,SME,1230460, 145.85 ,Travel & Subsistence,Administration
HM Land Registry,HM Land Registry,30/10/2018,Travel & Subsistence General Duty,Research & Data Mining,Corporate Travel Management (North of England) Ltd,SME,1230460, 68.70 ,Travel & Subsistence,Administration
HM Land Registry,HM Land Registry,30/10/2018,Travel & Subsistence General Duty,Telford Office,Corporate Travel Management (North of England) Ltd,SME,1230460, 86.10 ,Travel & Subsistence,Administration
HM Land Registry,HM Land Registry,30/10/2018,Travel & Subsistence General Duty,Dir: Finance,Corporate Travel Management (North of England) Ltd,SME,1230460," 2,009.50 ",Travel & Subsistence,Administration
HM Land Registry,HM Land Registry,30/10/2018,Travel & Subsistence General Duty,Internal Audit,Corporate Travel Management (North of England) Ltd,SME,1230460, 102.35 ,Travel & Subsistence,Administration
HM Land Registry,HM Land Registry,30/10/2018,Travel & Subsistence General Duty,International Business Development,Corporate Travel Management (North of England) Ltd,SME,1230460, 512.20 ,Travel & Subsistence,Administration
HM Land Registry,HM Land Registry,30/10/2018,Travel & Subsistence General Duty,Communications Team,Corporate Travel Management (North of England) Ltd,SME,1230460, 702.10 ,Travel & Subsistence,Administration
HM Land Registry,HM Land Registry,30/10/2018,Travel & Subsistence General Duty,Operations Assurance and Risk,Corporate Travel Management (North of England) Ltd,SME,1230460,-300.20 ,Travel & Subsistence,Administration
HM Land Registry,HM Land Registry,30/10/2018,Travel & Subsistence General Duty,Operation Focus,Corporate Travel Management (North of England) Ltd,SME,1230460," 1,532.39 ",Travel & Subsistence,Administration
HM Land Registry,HM Land Registry,30/10/2018,Travel & Subsistence General Duty,Customer Services,Corporate Travel Management (North of England) Ltd,SME,1230460," 2,382.73 ",Travel & Subsistence,Administration
HM Land Registry,HM Land Registry,30/10/2018,Travel & Subsistence General Duty,Service Management - Application Processing,Corporate Travel Management (North of England) Ltd,SME,1230460, 388.60 ,Travel & Subsistence,Administration
HM Land Registry,HM Land Registry,30/10/2018,Travel & Subsistence General Duty,Register Development,Corporate Travel Management (North of England) Ltd,SME,1230460,-194.80 ,Travel & Subsistence,Administration
HM Land Registry,HM Land Registry,30/10/2018,Travel & Subsistence General Duty,Local Lawyer Support Group,Corporate Travel Management (North of England) Ltd,SME,1230460, 359.30 ,Travel & Subsistence,Administration
HM Land Registry,HM Land Registry,30/10/2018,Travel & Subsistence General Duty,Head of Commercial Services,Corporate Travel Management (North of England) Ltd,SME,1230460, 441.70 ,Travel & Subsistence,Administration
HM Land Registry,HM Land Registry,30/10/2018,Travel & Subsistence General Duty,LR Sports Council,Corporate Travel Management (North of England) Ltd,SME,1230460, 316.00 ,Travel & Subsistence,Administration
HM Land Registry,HM Land Registry,30/10/2018,Travel & Subsistence General Duty,IT Solutions,Corporate Travel Management (North of England) Ltd,SME,1230460, 996.03 ,Travel & Subsistence,Administration
HM Land Registry,HM Land Registry,30/10/2018,Travel & Subsistence General Duty,Service & Supplier Performance,Corporate Travel Management (North of England) Ltd,SME,1230460, 609.60 ,Travel & Subsistence,Administration
HM Land Registry,HM Land Registry,30/10/2018,Travel & Subsistence General Duty,Office of DDaT,Corporate Travel Management (North of England) Ltd,SME,1230460, 280.60 ,Travel & Subsistence,Administration
HM Land Registry,HM Land Registry,30/10/2018,Travel & Subsistence General Duty,IT Operations    ,Corporate Travel Management (North of England) Ltd,SME,1230460, 83.60 ,Travel & Subsistence,Administration
HM Land Registry,HM Land Registry,30/10/2018,Travel & Subsistence General Duty,Tech Architecture,Corporate Travel Management (North of England) Ltd,SME,1230460, 478.15 ,Travel & Subsistence,Administration
HM Land Registry,HM Land Registry,01/10/2018,Rates Payable,Croydon Office,Croydon Council,Large,1209135," 41,553.00 ",Rates Payable,Administration
HM Land Registry,HM Land Registry,31/10/2018,Rates Payable,Croydon Office,Croydon Council,Large,1209135," 41,553.00 ",Rates Payable,Administration
HM Land Registry,HM Land Registry,15/10/2018,Fixed Asset Interface Account,Balance Sheet,Dell Corporation Ltd,Large,1228832," 41,334.84 ",Fixed Assets,Administration
HM Land Registry,HM Land Registry,19/10/2018,Fixed Asset Interface Account,Balance Sheet,Dell Corporation Ltd,Large,1229478," 28,763.71 ",Fixed Assets,Administration
HM Land Registry,HM Land Registry,30/10/2018,Professional Services,Dir: Information Systems,Deloitte MCS Ltd,Large,1229885," 235,684.74 ",Professional Services,Administration
HM Land Registry,HM Land Registry,29/10/2018,Rates Payable,Durham Office,Durham County Council,Large,1208028," 28,594.00 ",Rates Payable,Administration
HM Land Registry,HM Land Registry,26/10/2018,Electricity,Birkenhead Office,EDF Energy,Large,1229931," 5,907.80 ",Electricity,Administration
HM Land Registry,HM Land Registry,26/10/2018,Electricity,Croydon Office,EDF Energy,Large,1229931," 8,625.20 ",Electricity,Administration
HM Land Registry,HM Land Registry,26/10/2018,Electricity,Director of Information Systems,EDF Energy,Large,1229931," 58,592.66 ",Electricity,Administration
HM Land Registry,HM Land Registry,26/10/2018,Electricity,Durham Office,EDF Energy,Large,1229931," 5,867.51 ",Electricity,Administration
HM Land Registry,HM Land Registry,26/10/2018,Electricity,Fylde Office,EDF Energy,Large,1229931," 4,249.73 ",Electricity,Administration
HM Land Registry,HM Land Registry,26/10/2018,Electricity,Gloucester Computer Centre,EDF Energy,Large,1229931," 39,669.51 ",Electricity,Administration
HM Land Registry,HM Land Registry,26/10/2018,Electricity,Gloucester Office,EDF Energy,Large,1229931," 5,368.78 ",Electricity,Administration
HM Land Registry,HM Land Registry,26/10/2018,Electricity,Hull Office,EDF Energy,Large,1229931," 6,941.12 ",Electricity,Administration
HM Land Registry,HM Land Registry,26/10/2018,Electricity,Leicester Office,EDF Energy,Large,1229931," 4,384.43 ",Electricity,Administration
HM Land Registry,HM Land Registry,26/10/2018,Electricity,Nottingham Office,EDF Energy,Large,1229931," 7,608.99 ",Electricity,Administration
HM Land Registry,HM Land Registry,26/10/2018,Electricity,Telford Office,EDF Energy,Large,1229931," 4,908.36 ",Electricity,Administration
HM Land Registry,HM Land Registry,26/10/2018,Electricity,Wales Office,EDF Energy,Large,1229931," 5,462.86 ",Electricity,Administration
HM Land Registry,HM Land Registry,26/10/2018,Electricity,Weymouth Office,EDF Energy,Large,1229931," 5,683.86 ",Electricity,Administration
HM Land Registry,HM Land Registry,31/10/2018,Transport Hire of Cars and Vans,Central Facilities Management Team,Enterprise Rent-A-Car (UK) Ltd,Large,1230468," 21,378.80 ",Transport Hire of Cars and Vans,Administration
HM Land Registry,HM Land Registry,26/10/2018,Professional Services,Strategy Team,Ernst & Young LLP,Large,1230275," 46,593.60 ",Professional Services,Administration
HM Land Registry,HM Land Registry,29/10/2018,Rates Payable,Fylde Office,Fylde Borough Council,Large,1208025," 17,625.00 ",Rates Payable,Administration
HM Land Registry,HM Land Registry,29/10/2018,Rates Payable,Gloucester Office,Gloucester City Council,Large,1209131," 28,885.00 ",Rates Payable,Administration
HM Land Registry,HM Land Registry,25/10/2018,Major Property Maintenance Projects,Central Facilities Management Team,Griffin Elevators Ltd,Large,1229882," 45,098.60 ",Major Property Maintenance Projects,Administration
HM Land Registry,HM Land Registry,01/10/2018,Independent Adjudicators's Office Costs,Independent Adjudicator,HM Courts & Tribunals Service,Large,1227351," 752,300.00 ",Independent Adjudicators's Office Costs,Administration
HM Land Registry,HM Land Registry,09/10/2018,Assets in the Course of Construction,Balance Sheet,Idox Software Ltd,SME,1228326," 38,626.20 ",Assets in the Course of Construction,Administration
HM Land Registry,HM Land Registry,23/10/2018,Assets in the Course of Construction,Balance Sheet,Idox Software Ltd,SME,1227427," 77,252.40 ",Assets in the Course of Construction,Administration
HM Land Registry,HM Land Registry,24/10/2018,Assets in the Course of Construction,Balance Sheet,Idox Software Ltd,SME,1229701," 29,552.40 ",Assets in the Course of Construction,Administration
HM Land Registry,HM Land Registry,11/10/2018,Computer Equipment Maintenance,IS Service Delivery,Innovation Data Processing Ltd,SME,1228540," 57,482.00 ",Computer Equipment Maintenance,Administration
HM Land Registry,HM Land Registry,23/10/2018,Software as a Service (Cloud),Dir: (Statutory) Digital Services,INOVEM Ltd,SME,1229624," 17,687.50 ",Cloud Computing Services,Administration
HM Land Registry,HM Land Registry,23/10/2018,Software as a Service (Cloud),IS Service Delivery,INOVEM Ltd,SME,1229624," 24,762.50 ",Cloud Computing Services,Administration
HM Land Registry,HM Land Registry,24/10/2018,Pest Control,Birkenhead Office,ISS Facility Services,Large,1229553, 40.71 ,Pest Control,Administration
HM Land Registry,HM Land Registry,24/10/2018,Waste Disposal,Birkenhead Office,ISS Facility Services,Large,1229553, 914.70 ,Waste Disposal,Administration
HM Land Registry,HM Land Registry,24/10/2018,Office Cleaning Expenses,Birkenhead Office,ISS Facility Services,Large,1229553," 4,584.95 ",Office Cleaning Expenses,Administration
HM Land Registry,HM Land Registry,24/10/2018,Vending Machine Consumables & Repairs,Birkenhead Office,ISS Facility Services,Large,1229553, 40.82 ,Vending Machine Consumables & Repairs,Administration
HM Land Registry,HM Land Registry,24/10/2018,Security Expenses,Birkenhead Office,ISS Facility Services,Large,1229553," 3,771.12 ",Security Expenses,Administration
HM Land Registry,HM Land Registry,24/10/2018,FM Managed Services,Birkenhead Office,ISS Facility Services,Large,1229553," 7,376.86 ",Facilities Managed Services,Administration
HM Land Registry,HM Land Registry,24/10/2018,FM Ext Helpdesk,Birkenhead Office,ISS Facility Services,Large,1229553, 223.65 ,Facilities External Helpdesk,Administration
HM Land Registry,HM Land Registry,24/10/2018,Grounds Maintenance,Birkenhead Office,ISS Facility Services,Large,1229553, 995.18 ,Grounds Maintenance,Administration
HM Land Registry,HM Land Registry,24/10/2018,Facilities - Core Fee,Birkenhead Office,ISS Facility Services,Large,1229553," 4,629.56 ",Facilities - Core Fee,Administration
HM Land Registry,HM Land Registry,24/10/2018,Facilities - Quoted & Ad Hoc Works,Birkenhead Office,ISS Facility Services,Large,1229553," 1,534.63 ",Facilities - Quoted & Ad Hoc Works,Administration
HM Land Registry,HM Land Registry,24/10/2018,FF&F:Maintenance,Birkenhead Office,ISS Facility Services,Large,1229553, 208.39 ,"Furniture, Fixtures & Fittings:Maintenance",Administration
HM Land Registry,HM Land Registry,24/10/2018,Facilities - Core Fee,Central Facilities Management Team,ISS Facility Services,Large,1229553,"-2,466.31 ",Facilities - Core Fee,Administration
HM Land Registry,HM Land Registry,24/10/2018,FM Managed Services,Coventry Office,ISS Facility Services,Large,1229553, 590.44 ,Facilities Managed Services,Administration
HM Land Registry,HM Land Registry,24/10/2018,FM Ext Helpdesk,Coventry Office,ISS Facility Services,Large,1229553, 18.21 ,Facilities External Helpdesk,Administration
HM Land Registry,HM Land Registry,24/10/2018,Facilities - Core Fee,Coventry Office,ISS Facility Services,Large,1229553, 92.47 ,Facilities - Core Fee,Administration
HM Land Registry,HM Land Registry,24/10/2018,Pest Control,Croydon Office,ISS Facility Services,Large,1229553, 35.63 ,Pest Control,Administration
HM Land Registry,HM Land Registry,24/10/2018,Waste Disposal,Croydon Office,ISS Facility Services,Large,1229553, 623.08 ,Waste Disposal,Administration
HM Land Registry,HM Land Registry,24/10/2018,Office Cleaning Expenses,Croydon Office,ISS Facility Services,Large,1229553," 3,113.09 ",Office Cleaning Expenses,Administration
HM Land Registry,HM Land Registry,24/10/2018,Vending Machine Consumables & Repairs,Croydon Office,ISS Facility Services,Large,1229553, 40.82 ,Vending Machine Consumables & Repairs,Administration
HM Land Registry,HM Land Registry,24/10/2018,Security Expenses,Croydon Office,ISS Facility Services,Large,1229553," 7,987.24 ",Security Expenses,Administration
HM Land Registry,HM Land Registry,24/10/2018,FM Managed Services,Croydon Office,ISS Facility Services,Large,1229553," 6,859.38 ",Facilities Managed Services,Administration
HM Land Registry,HM Land Registry,24/10/2018,FM Ext Helpdesk,Croydon Office,ISS Facility Services,Large,1229553, 242.10 ,Facilities External Helpdesk,Administration
HM Land Registry,HM Land Registry,24/10/2018,Grounds Maintenance,Croydon Office,ISS Facility Services,Large,1229553, 319.57 ,Grounds Maintenance,Administration
HM Land Registry,HM Land Registry,24/10/2018,Facilities - Core Fee,Croydon Office,ISS Facility Services,Large,1229553," 4,891.90 ",Facilities - Core Fee,Administration
HM Land Registry,HM Land Registry,24/10/2018,Facilities - Quoted & Ad Hoc Works,Croydon Office,ISS Facility Services,Large,1229553," 1,676.49 ",Facilities - Quoted & Ad Hoc Works,Administration
HM Land Registry,HM Land Registry,24/10/2018,FF&F:Maintenance,Croydon Office,ISS Facility Services,Large,1229553, 160.11 ,"Furniture, Fixtures & Fittings:Maintenance",Administration
HM Land Registry,HM Land Registry,24/10/2018,Pest Control,Director of Information Systems,ISS Facility Services,Large,1229553, 119.72 ,Pest Control,Administration
HM Land Registry,HM Land Registry,24/10/2018,Waste Disposal,Director of Information Systems,ISS Facility Services,Large,1229553," 1,654.65 ",Waste Disposal,Administration
HM Land Registry,HM Land Registry,24/10/2018,Office Cleaning Expenses,Director of Information Systems,ISS Facility Services,Large,1229553," 9,628.06 ",Office Cleaning Expenses,Administration
HM Land Registry,HM Land Registry,24/10/2018,Vending Machine Consumables & Repairs,Director of Information Systems,ISS Facility Services,Large,1229553, 163.28 ,Vending Machine Consumables & Repairs,Administration
HM Land Registry,HM Land Registry,24/10/2018,Security Expenses,Director of Information Systems,ISS Facility Services,Large,1229553," 25,292.76 ",Security Expenses,Administration
HM Land Registry,HM Land Registry,24/10/2018,FM Managed Services,Director of Information Systems,ISS Facility Services,Large,1229553," 14,303.94 ",Facilities Managed Services,Administration
HM Land Registry,HM Land Registry,24/10/2018,FM Ext Helpdesk,Director of Information Systems,ISS Facility Services,Large,1229553, 716.58 ,Facilities External Helpdesk,Administration
HM Land Registry,HM Land Registry,24/10/2018,Grounds Maintenance,Director of Information Systems,ISS Facility Services,Large,1229553," 2,690.23 ",Grounds Maintenance,Administration
HM Land Registry,HM Land Registry,24/10/2018,Facilities - Core Fee,Director of Information Systems,ISS Facility Services,Large,1229553," 22,381.20 ",Facilities - Core Fee,Administration
HM Land Registry,HM Land Registry,24/10/2018,Facilities - Quoted & Ad Hoc Works,Director of Information Systems,ISS Facility Services,Large,1229553," 3,823.68 ",Facilities - Quoted & Ad Hoc Works,Administration
HM Land Registry,HM Land Registry,24/10/2018,FF&F:Maintenance,Director of Information Systems,ISS Facility Services,Large,1229553, 499.56 ,"Furniture, Fixtures & Fittings:Maintenance",Administration
HM Land Registry,HM Land Registry,24/10/2018,Pest Control,Durham Office,ISS Facility Services,Large,1229553, 45.99 ,Pest Control,Administration
HM Land Registry,HM Land Registry,24/10/2018,Waste Disposal,Durham Office,ISS Facility Services,Large,1229553, 926.92 ,Waste Disposal,Administration
HM Land Registry,HM Land Registry,24/10/2018,Office Cleaning Expenses,Durham Office,ISS Facility Services,Large,1229553," 6,661.69 ",Office Cleaning Expenses,Administration
HM Land Registry,HM Land Registry,24/10/2018,Vending Machine Consumables & Repairs,Durham Office,ISS Facility Services,Large,1229553, 40.82 ,Vending Machine Consumables & Repairs,Administration
HM Land Registry,HM Land Registry,24/10/2018,Security Expenses,Durham Office,ISS Facility Services,Large,1229553," 6,199.45 ",Security Expenses,Administration
HM Land Registry,HM Land Registry,24/10/2018,FM Managed Services,Durham Office,ISS Facility Services,Large,1229553," 8,212.93 ",Facilities Managed Services,Administration
HM Land Registry,HM Land Registry,24/10/2018,FM Ext Helpdesk,Durham Office,ISS Facility Services,Large,1229553, 314.80 ,Facilities External Helpdesk,Administration
HM Land Registry,HM Land Registry,24/10/2018,Grounds Maintenance,Durham Office,ISS Facility Services,Large,1229553," 1,499.29 ",Grounds Maintenance,Administration
HM Land Registry,HM Land Registry,24/10/2018,Facilities - Core Fee,Durham Office,ISS Facility Services,Large,1229553," 8,261.08 ",Facilities - Core Fee,Administration
HM Land Registry,HM Land Registry,24/10/2018,Facilities - Quoted & Ad Hoc Works,Durham Office,ISS Facility Services,Large,1229553, 955.60 ,Facilities - Quoted & Ad Hoc Works,Administration
HM Land Registry,HM Land Registry,24/10/2018,FF&F:Maintenance,Durham Office,ISS Facility Services,Large,1229553, 285.66 ,"Furniture, Fixtures & Fittings:Maintenance",Administration
HM Land Registry,HM Land Registry,24/10/2018,Pest Control,Fylde Office,ISS Facility Services,Large,1229553, 52.02 ,Pest Control,Administration
HM Land Registry,HM Land Registry,24/10/2018,Waste Disposal,Fylde Office,ISS Facility Services,Large,1229553, 552.28 ,Waste Disposal,Administration
HM Land Registry,HM Land Registry,24/10/2018,Office Cleaning Expenses,Fylde Office,ISS Facility Services,Large,1229553," 3,947.15 ",Office Cleaning Expenses,Administration
HM Land Registry,HM Land Registry,24/10/2018,Vending Machine Consumables & Repairs,Fylde Office,ISS Facility Services,Large,1229553, 81.64 ,Vending Machine Consumables & Repairs,Administration
HM Land Registry,HM Land Registry,24/10/2018,Security Expenses,Fylde Office,ISS Facility Services,Large,1229553," 8,656.57 ",Security Expenses,Administration
HM Land Registry,HM Land Registry,24/10/2018,FM Managed Services,Fylde Office,ISS Facility Services,Large,1229553," 7,761.55 ",Facilities Managed Services,Administration
HM Land Registry,HM Land Registry,24/10/2018,FM Ext Helpdesk,Fylde Office,ISS Facility Services,Large,1229553, 237.97 ,Facilities External Helpdesk,Administration
HM Land Registry,HM Land Registry,24/10/2018,Grounds Maintenance,Fylde Office,ISS Facility Services,Large,1229553," 2,466.97 ",Grounds Maintenance,Administration
HM Land Registry,HM Land Registry,24/10/2018,Facilities - Core Fee,Fylde Office,ISS Facility Services,Large,1229553," 3,987.19 ",Facilities - Core Fee,Administration
HM Land Registry,HM Land Registry,24/10/2018,Facilities - Quoted & Ad Hoc Works,Fylde Office,ISS Facility Services,Large,1229553," 1,818.35 ",Facilities - Quoted & Ad Hoc Works,Administration
HM Land Registry,HM Land Registry,24/10/2018,FF&F:Maintenance,Fylde Office,ISS Facility Services,Large,1229553, 164.73 ,"Furniture, Fixtures & Fittings:Maintenance",Administration
HM Land Registry,HM Land Registry,24/10/2018,Pest Control,Gloucester Computer Centre,ISS Facility Services,Large,1229553, 33.85 ,Pest Control,Administration
HM Land Registry,HM Land Registry,24/10/2018,Waste Disposal,Gloucester Computer Centre,ISS Facility Services,Large,1229553, 192.11 ,Waste Disposal,Administration
HM Land Registry,HM Land Registry,24/10/2018,Office Cleaning Expenses,Gloucester Computer Centre,ISS Facility Services,Large,1229553," 2,015.58 ",Office Cleaning Expenses,Administration
HM Land Registry,HM Land Registry,24/10/2018,Vending Machine Consumables & Repairs,Gloucester Computer Centre,ISS Facility Services,Large,1229553, 40.82 ,Vending Machine Consumables & Repairs,Administration
HM Land Registry,HM Land Registry,24/10/2018,Security Expenses,Gloucester Computer Centre,ISS Facility Services,Large,1229553," 12,193.74 ",Security Expenses,Administration
HM Land Registry,HM Land Registry,24/10/2018,FM Managed Services,Gloucester Computer Centre,ISS Facility Services,Large,1229553," 5,897.72 ",Facilities Managed Services,Administration
HM Land Registry,HM Land Registry,24/10/2018,FM Ext Helpdesk,Gloucester Computer Centre,ISS Facility Services,Large,1229553, 236.46 ,Facilities External Helpdesk,Administration
HM Land Registry,HM Land Registry,24/10/2018,Grounds Maintenance,Gloucester Computer Centre,ISS Facility Services,Large,1229553, 332.96 ,Grounds Maintenance,Administration
HM Land Registry,HM Land Registry,24/10/2018,Facilities - Core Fee,Gloucester Computer Centre,ISS Facility Services,Large,1229553," 8,348.55 ",Facilities - Core Fee,Administration
HM Land Registry,HM Land Registry,24/10/2018,Facilities - Quoted & Ad Hoc Works,Gloucester Computer Centre,ISS Facility Services,Large,1229553, 335.30 ,Facilities - Quoted & Ad Hoc Works,Administration
HM Land Registry,HM Land Registry,24/10/2018,FF&F:Maintenance,Gloucester Computer Centre,ISS Facility Services,Large,1229553, 82.11 ,"Furniture, Fixtures & Fittings:Maintenance",Administration
HM Land Registry,HM Land Registry,24/10/2018,Pest Control,Gloucester Office,ISS Facility Services,Large,1229553, 44.18 ,Pest Control,Administration
HM Land Registry,HM Land Registry,24/10/2018,Waste Disposal,Gloucester Office,ISS Facility Services,Large,1229553," 1,078.15 ",Waste Disposal,Administration
HM Land Registry,HM Land Registry,24/10/2018,Office Cleaning Expenses,Gloucester Office,ISS Facility Services,Large,1229553," 7,254.90 ",Office Cleaning Expenses,Administration
HM Land Registry,HM Land Registry,24/10/2018,Vending Machine Consumables & Repairs,Gloucester Office,ISS Facility Services,Large,1229553, 40.82 ,Vending Machine Consumables & Repairs,Administration
HM Land Registry,HM Land Registry,24/10/2018,Security Expenses,Gloucester Office,ISS Facility Services,Large,1229553," 4,747.14 ",Security Expenses,Administration
HM Land Registry,HM Land Registry,24/10/2018,FM Managed Services,Gloucester Office,ISS Facility Services,Large,1229553," 2,472.21 ",Facilities Managed Services,Administration
HM Land Registry,HM Land Registry,24/10/2018,FM Ext Helpdesk,Gloucester Office,ISS Facility Services,Large,1229553, 242.92 ,Facilities External Helpdesk,Administration
HM Land Registry,HM Land Registry,24/10/2018,Grounds Maintenance,Gloucester Office,ISS Facility Services,Large,1229553, 845.67 ,Grounds Maintenance,Administration
HM Land Registry,HM Land Registry,24/10/2018,Facilities - Core Fee,Gloucester Office,ISS Facility Services,Large,1229553," 5,411.98 ",Facilities - Core Fee,Administration
HM Land Registry,HM Land Registry,24/10/2018,Facilities - Quoted & Ad Hoc Works,Gloucester Office,ISS Facility Services,Large,1229553," 2,450.25 ",Facilities - Quoted & Ad Hoc Works,Administration
HM Land Registry,HM Land Registry,24/10/2018,FF&F:Maintenance,Gloucester Office,ISS Facility Services,Large,1229553, 248.25 ,"Furniture, Fixtures & Fittings:Maintenance",Administration
HM Land Registry,HM Land Registry,24/10/2018,Pest Control,Hull Office,ISS Facility Services,Large,1229553, 84.23 ,Pest Control,Administration
HM Land Registry,HM Land Registry,24/10/2018,Waste Disposal,Hull Office,ISS Facility Services,Large,1229553, 631.05 ,Waste Disposal,Administration
HM Land Registry,HM Land Registry,24/10/2018,Office Cleaning Expenses,Hull Office,ISS Facility Services,Large,1229553," 4,440.48 ",Office Cleaning Expenses,Administration
HM Land Registry,HM Land Registry,24/10/2018,Vending Machine Consumables & Repairs,Hull Office,ISS Facility Services,Large,1229553, 81.64 ,Vending Machine Consumables & Repairs,Administration
HM Land Registry,HM Land Registry,24/10/2018,Security Expenses,Hull Office,ISS Facility Services,Large,1229553," 6,354.43 ",Security Expenses,Administration
HM Land Registry,HM Land Registry,24/10/2018,FM Managed Services,Hull Office,ISS Facility Services,Large,1229553," 7,696.88 ",Facilities Managed Services,Administration
HM Land Registry,HM Land Registry,24/10/2018,FM Ext Helpdesk,Hull Office,ISS Facility Services,Large,1229553, 265.47 ,Facilities External Helpdesk,Administration
HM Land Registry,HM Land Registry,24/10/2018,Grounds Maintenance,Hull Office,ISS Facility Services,Large,1229553," 1,505.80 ",Grounds Maintenance,Administration
HM Land Registry,HM Land Registry,24/10/2018,Facilities - Core Fee,Hull Office,ISS Facility Services,Large,1229553," 6,197.85 ",Facilities - Core Fee,Administration
HM Land Registry,HM Land Registry,24/10/2018,Facilities - Quoted & Ad Hoc Works,Hull Office,ISS Facility Services,Large,1229553," 2,514.73 ",Facilities - Quoted & Ad Hoc Works,Administration
HM Land Registry,HM Land Registry,24/10/2018,FF&F:Maintenance,Hull Office,ISS Facility Services,Large,1229553, 237.38 ,"Furniture, Fixtures & Fittings:Maintenance",Administration
HM Land Registry,HM Land Registry,24/10/2018,Pest Control,Leicester Office,ISS Facility Services,Large,1229553, 35.54 ,Pest Control,Administration
HM Land Registry,HM Land Registry,24/10/2018,Waste Disposal,Leicester Office,ISS Facility Services,Large,1229553, 495.95 ,Waste Disposal,Administration
HM Land Registry,HM Land Registry,24/10/2018,Office Cleaning Expenses,Leicester Office,ISS Facility Services,Large,1229553," 3,453.66 ",Office Cleaning Expenses,Administration
HM Land Registry,HM Land Registry,24/10/2018,Vending Machine Consumables & Repairs,Leicester Office,ISS Facility Services,Large,1229553, 40.82 ,Vending Machine Consumables & Repairs,Administration
HM Land Registry,HM Land Registry,24/10/2018,Security Expenses,Leicester Office,ISS Facility Services,Large,1229553," 5,672.27 ",Security Expenses,Administration
HM Land Registry,HM Land Registry,24/10/2018,FM Managed Services,Leicester Office,ISS Facility Services,Large,1229553," 1,628.21 ",Facilities Managed Services,Administration
HM Land Registry,HM Land Registry,24/10/2018,FM Ext Helpdesk,Leicester Office,ISS Facility Services,Large,1229553, 146.58 ,Facilities External Helpdesk,Administration
HM Land Registry,HM Land Registry,24/10/2018,Grounds Maintenance,Leicester Office,ISS Facility Services,Large,1229553, 392.98 ,Grounds Maintenance,Administration
HM Land Registry,HM Land Registry,24/10/2018,Facilities - Core Fee,Leicester Office,ISS Facility Services,Large,1229553," 3,811.85 ",Facilities - Core Fee,Administration
HM Land Registry,HM Land Registry,24/10/2018,Facilities - Quoted & Ad Hoc Works,Leicester Office,ISS Facility Services,Large,1229553," 1,399.22 ",Facilities - Quoted & Ad Hoc Works,Administration
HM Land Registry,HM Land Registry,24/10/2018,FF&F:Maintenance,Leicester Office,ISS Facility Services,Large,1229553, 148.51 ,"Furniture, Fixtures & Fittings:Maintenance",Administration
HM Land Registry,HM Land Registry,24/10/2018,Pest Control,Nottingham Office,ISS Facility Services,Large,1229553, 39.07 ,Pest Control,Administration
HM Land Registry,HM Land Registry,24/10/2018,Waste Disposal,Nottingham Office,ISS Facility Services,Large,1229553, 478.02 ,Waste Disposal,Administration
HM Land Registry,HM Land Registry,24/10/2018,Office Cleaning Expenses,Nottingham Office,ISS Facility Services,Large,1229553," 3,447.53 ",Office Cleaning Expenses,Administration
HM Land Registry,HM Land Registry,24/10/2018,Vending Machine Consumables & Repairs,Nottingham Office,ISS Facility Services,Large,1229553, 40.82 ,Vending Machine Consumables & Repairs,Administration
HM Land Registry,HM Land Registry,24/10/2018,Security Expenses,Nottingham Office,ISS Facility Services,Large,1229553," 4,576.81 ",Security Expenses,Administration
HM Land Registry,HM Land Registry,24/10/2018,FM Managed Services,Nottingham Office,ISS Facility Services,Large,1229553," 8,775.61 ",Facilities Managed Services,Administration
HM Land Registry,HM Land Registry,24/10/2018,FM Ext Helpdesk,Nottingham Office,ISS Facility Services,Large,1229553, 237.55 ,Facilities External Helpdesk,Administration
HM Land Registry,HM Land Registry,24/10/2018,Grounds Maintenance,Nottingham Office,ISS Facility Services,Large,1229553, 494.47 ,Grounds Maintenance,Administration
HM Land Registry,HM Land Registry,24/10/2018,Facilities - Core Fee,Nottingham Office,ISS Facility Services,Large,1229553," 4,807.33 ",Facilities - Core Fee,Administration
HM Land Registry,HM Land Registry,24/10/2018,Facilities - Quoted & Ad Hoc Works,Nottingham Office,ISS Facility Services,Large,1229553," 3,552.87 ",Facilities - Quoted & Ad Hoc Works,Administration
HM Land Registry,HM Land Registry,24/10/2018,FF&F:Maintenance,Nottingham Office,ISS Facility Services,Large,1229553, 195.35 ,"Furniture, Fixtures & Fittings:Maintenance",Administration
HM Land Registry,HM Land Registry,24/10/2018,Pest Control,Peterborough Office,ISS Facility Services,Large,1229553, 26.84 ,Pest Control,Administration
HM Land Registry,HM Land Registry,24/10/2018,Waste Disposal,Peterborough Office,ISS Facility Services,Large,1229553, 799.15 ,Waste Disposal,Administration
HM Land Registry,HM Land Registry,24/10/2018,Office Cleaning Expenses,Peterborough Office,ISS Facility Services,Large,1229553," 1,848.81 ",Office Cleaning Expenses,Administration
HM Land Registry,HM Land Registry,24/10/2018,Vending Machine Consumables & Repairs,Peterborough Office,ISS Facility Services,Large,1229553, 40.82 ,Vending Machine Consumables & Repairs,Administration
HM Land Registry,HM Land Registry,24/10/2018,Security Expenses,Peterborough Office,ISS Facility Services,Large,1229553," 2,971.63 ",Security Expenses,Administration
HM Land Registry,HM Land Registry,24/10/2018,FM Managed Services,Peterborough Office,ISS Facility Services,Large,1229553," 1,445.90 ",Facilities Managed Services,Administration
HM Land Registry,HM Land Registry,24/10/2018,FM Ext Helpdesk,Peterborough Office,ISS Facility Services,Large,1229553, 80.13 ,Facilities External Helpdesk,Administration
HM Land Registry,HM Land Registry,24/10/2018,Grounds Maintenance,Peterborough Office,ISS Facility Services,Large,1229553, 356.54 ,Grounds Maintenance,Administration
HM Land Registry,HM Land Registry,24/10/2018,Facilities - Core Fee,Peterborough Office,ISS Facility Services,Large,1229553," 1,445.01 ",Facilities - Core Fee,Administration
HM Land Registry,HM Land Registry,24/10/2018,Facilities - Quoted & Ad Hoc Works,Peterborough Office,ISS Facility Services,Large,1229553, 844.69 ,Facilities - Quoted & Ad Hoc Works,Administration
HM Land Registry,HM Land Registry,24/10/2018,FF&F:Maintenance,Peterborough Office,ISS Facility Services,Large,1229553, 70.53 ,"Furniture, Fixtures & Fittings:Maintenance",Administration
HM Land Registry,HM Land Registry,24/10/2018,Pest Control,Telford Office,ISS Facility Services,Large,1229553, 44.16 ,Pest Control,Administration
HM Land Registry,HM Land Registry,24/10/2018,Waste Disposal,Telford Office,ISS Facility Services,Large,1229553, 704.10 ,Waste Disposal,Administration
HM Land Registry,HM Land Registry,24/10/2018,Office Cleaning Expenses,Telford Office,ISS Facility Services,Large,1229553," 5,882.21 ",Office Cleaning Expenses,Administration
HM Land Registry,HM Land Registry,24/10/2018,Vending Machine Consumables & Repairs,Telford Office,ISS Facility Services,Large,1229553, 40.82 ,Vending Machine Consumables & Repairs,Administration
HM Land Registry,HM Land Registry,24/10/2018,Security Expenses,Telford Office,ISS Facility Services,Large,1229553," 4,128.32 ",Security Expenses,Administration
HM Land Registry,HM Land Registry,24/10/2018,FM Managed Services,Telford Office,ISS Facility Services,Large,1229553," 2,959.43 ",Facilities Managed Services,Administration
HM Land Registry,HM Land Registry,24/10/2018,FM Ext Helpdesk,Telford Office,ISS Facility Services,Large,1229553, 221.72 ,Facilities External Helpdesk,Administration
HM Land Registry,HM Land Registry,24/10/2018,Grounds Maintenance,Telford Office,ISS Facility Services,Large,1229553," 1,644.81 ",Grounds Maintenance,Administration
HM Land Registry,HM Land Registry,24/10/2018,Facilities - Core Fee,Telford Office,ISS Facility Services,Large,1229553," 4,598.39 ",Facilities - Core Fee,Administration
HM Land Registry,HM Land Registry,24/10/2018,Facilities - Quoted & Ad Hoc Works,Telford Office,ISS Facility Services,Large,1229553," 2,527.63 ",Facilities - Quoted & Ad Hoc Works,Administration
HM Land Registry,HM Land Registry,24/10/2018,FF&F:Maintenance,Telford Office,ISS Facility Services,Large,1229553, 245.07 ,"Furniture, Fixtures & Fittings:Maintenance",Administration
HM Land Registry,HM Land Registry,24/10/2018,Pest Control,Wales Office,ISS Facility Services,Large,1229553, 53.91 ,Pest Control,Administration
HM Land Registry,HM Land Registry,24/10/2018,Waste Disposal,Wales Office,ISS Facility Services,Large,1229553," 2,275.00 ",Waste Disposal,Administration
HM Land Registry,HM Land Registry,24/10/2018,Office Cleaning Expenses,Wales Office,ISS Facility Services,Large,1229553," 3,102.76 ",Office Cleaning Expenses,Administration
HM Land Registry,HM Land Registry,24/10/2018,Vending Machine Consumables & Repairs,Wales Office,ISS Facility Services,Large,1229553, 81.64 ,Vending Machine Consumables & Repairs,Administration
HM Land Registry,HM Land Registry,24/10/2018,Security Expenses,Wales Office,ISS Facility Services,Large,1229553," 5,587.03 ",Security Expenses,Administration
HM Land Registry,HM Land Registry,24/10/2018,FM Managed Services,Wales Office,ISS Facility Services,Large,1229553," 2,458.67 ",Facilities Managed Services,Administration
HM Land Registry,HM Land Registry,24/10/2018,FM Ext Helpdesk,Wales Office,ISS Facility Services,Large,1229553, 191.15 ,Facilities External Helpdesk,Administration
HM Land Registry,HM Land Registry,24/10/2018,Grounds Maintenance,Wales Office,ISS Facility Services,Large,1229553," 1,016.77 ",Grounds Maintenance,Administration
HM Land Registry,HM Land Registry,24/10/2018,Facilities - Core Fee,Wales Office,ISS Facility Services,Large,1229553," 4,691.58 ",Facilities - Core Fee,Administration
HM Land Registry,HM Land Registry,24/10/2018,Facilities - Quoted & Ad Hoc Works,Wales Office,ISS Facility Services,Large,1229553," 2,056.92 ",Facilities - Quoted & Ad Hoc Works,Administration
HM Land Registry,HM Land Registry,24/10/2018,FF&F:Maintenance,Wales Office,ISS Facility Services,Large,1229553, 169.10 ,"Furniture, Fixtures & Fittings:Maintenance",Administration
HM Land Registry,HM Land Registry,24/10/2018,Pest Control,Weymouth Office,ISS Facility Services,Large,1229553, 57.18 ,Pest Control,Administration
HM Land Registry,HM Land Registry,24/10/2018,Waste Disposal,Weymouth Office,ISS Facility Services,Large,1229553, 625.25 ,Waste Disposal,Administration
HM Land Registry,HM Land Registry,24/10/2018,Office Cleaning Expenses,Weymouth Office,ISS Facility Services,Large,1229553," 5,099.26 ",Office Cleaning Expenses,Administration
HM Land Registry,HM Land Registry,24/10/2018,Vending Machine Consumables & Repairs,Weymouth Office,ISS Facility Services,Large,1229553, 81.64 ,Vending Machine Consumables & Repairs,Administration
HM Land Registry,HM Land Registry,24/10/2018,Security Expenses,Weymouth Office,ISS Facility Services,Large,1229553," 5,236.61 ",Security Expenses,Administration
HM Land Registry,HM Land Registry,24/10/2018,FM Managed Services,Weymouth Office,ISS Facility Services,Large,1229553," 3,782.77 ",Facilities Managed Services,Administration
HM Land Registry,HM Land Registry,24/10/2018,FM Ext Helpdesk,Weymouth Office,ISS Facility Services,Large,1229553, 215.10 ,Facilities External Helpdesk,Administration
HM Land Registry,HM Land Registry,24/10/2018,Grounds Maintenance,Weymouth Office,ISS Facility Services,Large,1229553," 1,423.58 ",Grounds Maintenance,Administration
HM Land Registry,HM Land Registry,24/10/2018,Facilities - Core Fee,Weymouth Office,ISS Facility Services,Large,1229553," 5,574.39 ",Facilities - Core Fee,Administration
HM Land Registry,HM Land Registry,24/10/2018,Facilities - Quoted & Ad Hoc Works,Weymouth Office,ISS Facility Services,Large,1229553," 2,991.88 ",Facilities - Quoted & Ad Hoc Works,Administration
HM Land Registry,HM Land Registry,24/10/2018,FF&F:Maintenance,Weymouth Office,ISS Facility Services,Large,1229553, 244.94 ,"Furniture, Fixtures & Fittings:Maintenance",Administration
HM Land Registry,HM Land Registry,24/10/2018,Facilities - Quoted & Ad Hoc Works,Birkenhead Office,ISS Facility Services,Large,1229767," 4,021.68 ",Facilities - Quoted & Ad Hoc Works,Administration
HM Land Registry,HM Land Registry,24/10/2018,Office Cleaning Expenses,Croydon Office,ISS Facility Services,Large,1229767, 28.11 ,Office Cleaning Expenses,Administration
HM Land Registry,HM Land Registry,24/10/2018,Office Cleaning Expenses,Durham Office,ISS Facility Services,Large,1229767, 28.11 ,Office Cleaning Expenses,Administration
HM Land Registry,HM Land Registry,24/10/2018,Facilities - Quoted & Ad Hoc Works,Fylde Office,ISS Facility Services,Large,1229767," 1,008.32 ",Facilities - Quoted & Ad Hoc Works,Administration
HM Land Registry,HM Land Registry,24/10/2018,Office Cleaning Expenses,Hull Office,ISS Facility Services,Large,1229767, 28.11 ,Office Cleaning Expenses,Administration
HM Land Registry,HM Land Registry,24/10/2018,Office Cleaning Expenses,Leicester Office,ISS Facility Services,Large,1229767, 76.08 ,Office Cleaning Expenses,Administration
HM Land Registry,HM Land Registry,24/10/2018,Facilities - Quoted & Ad Hoc Works,Leicester Office,ISS Facility Services,Large,1229767," 17,836.92 ",Facilities - Quoted & Ad Hoc Works,Administration
HM Land Registry,HM Land Registry,24/10/2018,Office Cleaning Expenses,Nottingham Office,ISS Facility Services,Large,1229767, 76.08 ,Office Cleaning Expenses,Administration
HM Land Registry,HM Land Registry,24/10/2018,Facilities - Quoted & Ad Hoc Works,Nottingham Office,ISS Facility Services,Large,1229767," 4,304.22 ",Facilities - Quoted & Ad Hoc Works,Administration
HM Land Registry,HM Land Registry,24/10/2018,Office Cleaning Expenses,Peterborough Office,ISS Facility Services,Large,1229767, 64.09 ,Office Cleaning Expenses,Administration
HM Land Registry,HM Land Registry,24/10/2018,Facilities - Quoted & Ad Hoc Works,Peterborough Office,ISS Facility Services,Large,1229767, 493.86 ,Facilities - Quoted & Ad Hoc Works,Administration
HM Land Registry,HM Land Registry,24/10/2018,Office Cleaning Expenses,Plymouth Office,ISS Facility Services,Large,1229767," 8,881.48 ",Office Cleaning Expenses,Administration
HM Land Registry,HM Land Registry,24/10/2018,Facilities - Quoted & Ad Hoc Works,Plymouth Office,ISS Facility Services,Large,1229767, 25.35 ,Facilities - Quoted & Ad Hoc Works,Administration
HM Land Registry,HM Land Registry,24/10/2018,Security Expenses,Birkenhead Office,ISS Facility Services,Large,1229768," 3,436.96 ",Security Expenses,Administration
HM Land Registry,HM Land Registry,24/10/2018,Security Expenses,Central Facilities Management Team,ISS Facility Services,Large,1229768," 1,779.82 ",Security Expenses,Administration
HM Land Registry,HM Land Registry,24/10/2018,Security Expenses,Croydon Office,ISS Facility Services,Large,1229768," 1,688.99 ",Security Expenses,Administration
HM Land Registry,HM Land Registry,24/10/2018,Security Expenses,Durham Office,ISS Facility Services,Large,1229768," 2,634.69 ",Security Expenses,Administration
HM Land Registry,HM Land Registry,24/10/2018,Security Expenses,Fylde Office,ISS Facility Services,Large,1229768," 2,634.69 ",Security Expenses,Administration
HM Land Registry,HM Land Registry,24/10/2018,Security Expenses,Hull Office,ISS Facility Services,Large,1229768," 2,634.69 ",Security Expenses,Administration
HM Land Registry,HM Land Registry,24/10/2018,Security Expenses,Leicester Office,ISS Facility Services,Large,1229768," 2,634.69 ",Security Expenses,Administration
HM Land Registry,HM Land Registry,24/10/2018,Security Expenses,Nottingham Office,ISS Facility Services,Large,1229768," 2,634.69 ",Security Expenses,Administration
HM Land Registry,HM Land Registry,24/10/2018,Security Expenses,Peterborough Office,ISS Facility Services,Large,1229768," 3,052.99 ",Security Expenses,Administration
HM Land Registry,HM Land Registry,24/10/2018,Security Expenses,Telford Office,ISS Facility Services,Large,1229768," 2,634.69 ",Security Expenses,Administration
HM Land Registry,HM Land Registry,24/10/2018,Security Expenses,Wales Office,ISS Facility Services,Large,1229768," 2,634.69 ",Security Expenses,Administration
HM Land Registry,HM Land Registry,24/10/2018,Security Expenses,Weymouth Office,ISS Facility Services,Large,1229768," 1,688.98 ",Security Expenses,Administration
HM Land Registry,HM Land Registry,26/10/2018,Pest Control,Birkenhead Office,ISS Facility Services,Large,1230161, 115.50 ,Pest Control,Administration
HM Land Registry,HM Land Registry,26/10/2018,Facilities - Quoted & Ad Hoc Works,Birkenhead Office,ISS Facility Services,Large,1230161, 227.07 ,Facilities - Quoted & Ad Hoc Works,Administration
HM Land Registry,HM Land Registry,26/10/2018,FF&F:Removals,Birkenhead Office,ISS Facility Services,Large,1230161," 3,286.80 ","Furniture, Fixtures & Fittings: Removals",Administration
HM Land Registry,HM Land Registry,26/10/2018,Facilities - Quoted & Ad Hoc Works,Croydon Office,ISS Facility Services,Large,1230161," 5,186.79 ",Facilities - Quoted & Ad Hoc Works,Administration
HM Land Registry,HM Land Registry,26/10/2018,Major Property Maintenance Projects,Croydon Office,ISS Facility Services,Large,1230161," 66,696.37 ",Major Property Maintenance Projects,Administration
HM Land Registry,HM Land Registry,26/10/2018,Facilities - Quoted & Ad Hoc Works,Durham Office,ISS Facility Services,Large,1230161," 2,330.51 ",Facilities - Quoted & Ad Hoc Works,Administration
HM Land Registry,HM Land Registry,26/10/2018,Security Expenses,Fylde Office,ISS Facility Services,Large,1230161," 1,326.01 ",Security Expenses,Administration
HM Land Registry,HM Land Registry,26/10/2018,Facilities - Quoted & Ad Hoc Works,Fylde Office,ISS Facility Services,Large,1230161," 1,405.46 ",Facilities - Quoted & Ad Hoc Works,Administration
HM Land Registry,HM Land Registry,26/10/2018,FF&F:Removals,Fylde Office,ISS Facility Services,Large,1230161," 1,052.55 ","Furniture, Fixtures & Fittings: Removals",Administration
HM Land Registry,HM Land Registry,26/10/2018,Office Cleaning Expenses,Gloucester Office,ISS Facility Services,Large,1230161,-150.92 ,Office Cleaning Expenses,Administration
HM Land Registry,HM Land Registry,26/10/2018,Security Expenses,Gloucester Office,ISS Facility Services,Large,1230161, 946.60 ,Security Expenses,Administration
HM Land Registry,HM Land Registry,26/10/2018,Facilities - Quoted & Ad Hoc Works,Gloucester Office,ISS Facility Services,Large,1230161," 21,913.11 ",Facilities - Quoted & Ad Hoc Works,Administration
HM Land Registry,HM Land Registry,26/10/2018,Security Expenses,Hull Office,ISS Facility Services,Large,1230161, 515.87 ,Security Expenses,Administration
HM Land Registry,HM Land Registry,26/10/2018,Facilities - Quoted & Ad Hoc Works,Hull Office,ISS Facility Services,Large,1230161," 11,843.11 ",Facilities - Quoted & Ad Hoc Works,Administration
HM Land Registry,HM Land Registry,26/10/2018,Major Property Maintenance Projects,Hull Office,ISS Facility Services,Large,1230161," 40,349.99 ",Major Property Maintenance Projects,Administration
HM Land Registry,HM Land Registry,26/10/2018,Facilities - Quoted & Ad Hoc Works,Leicester Office,ISS Facility Services,Large,1230161," 10,437.61 ",Facilities - Quoted & Ad Hoc Works,Administration
HM Land Registry,HM Land Registry,26/10/2018,Facilities - Quoted & Ad Hoc Works,Nottingham Office,ISS Facility Services,Large,1230161," 2,045.75 ",Facilities - Quoted & Ad Hoc Works,Administration
HM Land Registry,HM Land Registry,26/10/2018,Facilities - Quoted & Ad Hoc Works,Peterborough Office,ISS Facility Services,Large,1230161,"-3,022.25 ",Facilities - Quoted & Ad Hoc Works,Administration
HM Land Registry,HM Land Registry,26/10/2018,Facilities - Quoted & Ad Hoc Works,Plymouth Office,ISS Facility Services,Large,1230161," 12,035.93 ",Facilities - Quoted & Ad Hoc Works,Administration
HM Land Registry,HM Land Registry,26/10/2018,Major Property Maintenance Projects,Plymouth Office,ISS Facility Services,Large,1230161," 55,460.81 ",Major Property Maintenance Projects,Administration
HM Land Registry,HM Land Registry,26/10/2018,Facilities - Quoted & Ad Hoc Works,Telford Office,ISS Facility Services,Large,1230161," 2,788.97 ",Facilities - Quoted & Ad Hoc Works,Administration
HM Land Registry,HM Land Registry,26/10/2018,Grounds Maintenance,Wales Office,ISS Facility Services,Large,1230161," 3,219.26 ",Grounds Maintenance,Administration
HM Land Registry,HM Land Registry,26/10/2018,Facilities - Quoted & Ad Hoc Works,Wales Office,ISS Facility Services,Large,1230161, 529.03 ,Facilities - Quoted & Ad Hoc Works,Administration
HM Land Registry,HM Land Registry,26/10/2018,Security Expenses,Weymouth Office,ISS Facility Services,Large,1230161," 1,067.54 ",Security Expenses,Administration
HM Land Registry,HM Land Registry,26/10/2018,Facilities - Quoted & Ad Hoc Works,Weymouth Office,ISS Facility Services,Large,1230161," 11,871.41 ",Facilities - Quoted & Ad Hoc Works,Administration
HM Land Registry,HM Land Registry,09/10/2018,Professional Services,Dir: (Statutory) Digital Services,Kainos Software Ltd,Large,1228233," 594,586.20 ",Professional Services,Administration
HM Land Registry,HM Land Registry,17/10/2018,Professional Services,Dir: (Statutory) Digital Services,Kainos Software Ltd,Large,1228234," 117,538.01 ",Professional Services,Administration
HM Land Registry,HM Land Registry,10/10/2018,Rates Payable,Hull Office,Kingston Upon Hull City Council,Large,1209133," 6,582.94 ",Rates Payable,Administration
HM Land Registry,HM Land Registry,29/10/2018,Rates Payable,Leicester Office,Leicester City Council,Large,1208569," 22,062.00 ",Rates Payable,Administration
HM Land Registry,HM Land Registry,18/10/2018,Professional Services,Dir: (Statutory) Digital Services,Methods Business and Digital Technology Ltd,Large,1225364," 55,884.00 ",Professional Services,Administration
HM Land Registry,HM Land Registry,18/10/2018,Professional Services,Dir: (Statutory) Digital Services,Methods Business and Digital Technology Ltd,Large,1227888," 89,556.00 ",Professional Services,Administration
HM Land Registry,HM Land Registry,18/10/2018,Professional Services,Dir: (Statutory) Digital Services,Methods Business and Digital Technology Ltd,Large,1227887," 28,896.00 ",Professional Services,Administration
HM Land Registry,HM Land Registry,30/10/2018,Data Network Lines,IS Service Delivery,MLL Telecom Ltd,Large,1228235," 50,490.25 ",Data Network Lines,Administration
HM Land Registry,HM Land Registry,24/10/2018,Auditors Remuneration,Finance Group,National Audit Office,Large,1229634," 38,500.00 ",Auditors Remuneration,Administration
HM Land Registry,HM Land Registry,29/10/2018,Rates Payable,Nottingham Office,Nottingham City Council,Large,1209145," 25,883.00 ",Rates Payable,Administration
HM Land Registry,HM Land Registry,11/10/2018,Professional Services,Dir: Information Systems,Ordnance Survey,Large,1228400," 42,663.00 ",Professional Services,Administration
HM Land Registry,HM Land Registry,29/10/2018,Rates Payable,Plymouth Office,Plymouth City Council,Large,1210538," 35,444.00 ",Rates Payable,Administration
HM Land Registry,HM Land Registry,08/10/2018,RFS Outsourced Services,Central RFS,Restore Plc,Large,1228124," 89,923.65 ",Regional File Store Outsourced Services,Administration
HM Land Registry,HM Land Registry,08/10/2018,RFS Outsourced Services,Central RFS,Restore Plc,Large,1228123," 205,876.08 ",Regional File Store Outsourced Services,Administration
HM Land Registry,HM Land Registry,16/10/2018,Letter Post,Birkenhead Office,Royal Mail,Large,1229147," 2,685.75 ",Letter Post,Administration
HM Land Registry,HM Land Registry,16/10/2018,Letter Post,Coventry Office,Royal Mail,Large,1229147," 1,070.94 ",Letter Post,Administration
HM Land Registry,HM Land Registry,16/10/2018,Letter Post,Croydon Office,Royal Mail,Large,1229147," 5,403.81 ",Letter Post,Administration
HM Land Registry,HM Land Registry,16/10/2018,Letter Post,Durham Office,Royal Mail,Large,1229147," 5,786.68 ",Letter Post,Administration
HM Land Registry,HM Land Registry,16/10/2018,Letter Post,Fylde Office,Royal Mail,Large,1229147," 2,543.67 ",Letter Post,Administration
HM Land Registry,HM Land Registry,16/10/2018,Letter Post,Gloucester Office,Royal Mail,Large,1229147," 2,045.93 ",Letter Post,Administration
HM Land Registry,HM Land Registry,16/10/2018,Letter Post,Hull Office,Royal Mail,Large,1229147," 3,383.99 ",Letter Post,Administration
HM Land Registry,HM Land Registry,16/10/2018,Letter Post,IS Service Delivery,Royal Mail,Large,1229147," 28,010.50 ",Letter Post,Administration
HM Land Registry,HM Land Registry,16/10/2018,Letter Post,Leicester Office,Royal Mail,Large,1229147," 1,364.24 ",Letter Post,Administration
HM Land Registry,HM Land Registry,16/10/2018,Letter Post,Nottingham Office,Royal Mail,Large,1229147," 3,151.63 ",Letter Post,Administration
HM Land Registry,HM Land Registry,16/10/2018,Letter Post,Peterborough Office,Royal Mail,Large,1229147," 2,442.52 ",Letter Post,Administration
HM Land Registry,HM Land Registry,16/10/2018,Letter Post,Telford Office,Royal Mail,Large,1229147," 1,210.99 ",Letter Post,Administration
HM Land Registry,HM Land Registry,16/10/2018,Letter Post,Wales Office,Royal Mail,Large,1229147," 13,856.96 ",Letter Post,Administration
HM Land Registry,HM Land Registry,16/10/2018,Letter Post,Weymouth Office,Royal Mail,Large,1229147," 1,529.45 ",Letter Post,Administration
HM Land Registry,HM Land Registry,18/10/2018,Computer Equipment Hire,IS Service Delivery,SAS Software Ltd,Large,1229225," 99,662.40 ",Computer Equipment Hire,Administration
HM Land Registry,HM Land Registry,29/10/2018,Rates Payable,Director of Information Systems,South Hams District Council,Large,1208573," 7,704.00 ",Rates Payable,Administration
HM Land Registry,HM Land Registry,29/10/2018,Rates Payable,Director of Information Systems,South Hams District Council,Large,1208571," 4,634.00 ",Rates Payable,Administration
HM Land Registry,HM Land Registry,04/10/2018,Software as a Service (Cloud),Dir: Finance,Specialist Computer Centres Plc - SCC,Large,1227870," 151,860.47 ",Cloud Computing Services,Administration
HM Land Registry,HM Land Registry,29/10/2018,Rates Payable,Telford Office,Telford & Wrekin Council,Large,1208572," 25,463.00 ",Rates Payable,Administration
HM Land Registry,HM Land Registry,29/10/2018,Rates Payable,Gloucester Computer Centre,Tewkesbury Borough Council,Large,1208017," 11,419.00 ",Rates Payable,Administration
HM Land Registry,HM Land Registry,01/10/2018,Data Network Lines,IS Service Delivery,Vodafone Corporate Ltd,Large,1210680,"-146,963.58 ",Data Network Lines,Administration
HM Land Registry,HM Land Registry,01/10/2018,Data Network Lines,IS Service Delivery,Vodafone Corporate Ltd,Large,1219704,"-164,000.00 ",Data Network Lines,Administration
HM Land Registry,HM Land Registry,01/10/2018,Data Network Lines,IS Service Delivery,Vodafone Corporate Ltd,Large,1210678," 170,093.51 ",Data Network Lines,Administration
HM Land Registry,HM Land Registry,01/10/2018,Data Network Lines,IS Service Delivery,Vodafone Corporate Ltd,Large,1210679," 207,382.07 ",Data Network Lines,Administration
HM Land Registry,HM Land Registry,05/10/2018,Rates Payable,Weymouth Office,West Dorset District Council,Large,1210787," 5,374.00 ",Rates Payable,Administration
HM Land Registry,HM Land Registry,05/10/2018,Rates Payable,Weymouth Office,West Dorset District Council,Large,1210790," 4,807.00 ",Rates Payable,Administration
HM Land Registry,HM Land Registry,01/10/2018,Rates Payable,Birkenhead Office,Wirral Council,Large,1209134," 27,855.00 ",Rates Payable,Administration
HM Land Registry,HM Land Registry,24/10/2018,Scanning Contract,Forward Scanning,Xerox (UK) Ltd,Large,1227998," 103,171.42 ",Scanning Contract,Administration
